Workbook

Sheet Standen Programma
A1: Stand | B1: Naam | C1: Inschrijf nr. | D1: 1e Hoogste | E1: 2e Hoogste | F1: 3e Hoogste | G1: Eindstand | H1: Gemiddelde | I1: 1e Kaart | J1: 2e Kaart | K1: 3e Kaart | L1: 4e Kaart | M1: 5e Kaart | N1: 6e Kaart | O1: 7e Kaart | P1: 8e Kaart
B2: Klasse A
B3: 140.01 en hoger
A4: 1 | B4: Wim Kiwiet | C4: 20 | D4: =LARGE(I4:P4,1) -> 732 | E4: =LARGE(I4:P4,2) -> 730 | F4: =LARGE(I4:P4,3) -> 724 | G4: =SUM(D4:F4) -> 2186 | H4: =IF(E4<1,(G4/5),IF(F4<1,(G4/10),IF(F4>1,(G4/15)))) -> 145.7333333 | I4: 730 | J4: 659 | K4: 732 | L4: 699 | M4: 724 | N4: 700
A5: 2 | B5: Siem Oostenbrink | C5: 52 | D5: =LARGE(I5:P5,1) -> 732 | E5: =LARGE(I5:P5,2) -> 724 | F5: =LARGE(I5:P5,3) -> 716 | G5: =SUM(D5:F5) -> 2172 | H5: =IF(E5<1,(G5/5),IF(F5<1,(G5/10),IF(F5>1,(G5/15)))) -> 144.8 | I5: 724 | J5: 732 | K5: 652 | L5: 716 | M5: 657
A6: 3 | B6: Hetty Kleine | C6: 62 | D6: =LARGE(I6:P6,1) -> 724 | E6: =LARGE(I6:P6,2) -> 724 | F6: =LARGE(I6:P6,3) -> 723 | G6: =SUM(D6:F6) -> 2171 | H6: =IF(E6<1,(G6/5),IF(F6<1,(G6/10),IF(F6>1,(G6/15)))) -> 144.7333333 | I6: 724 | J6: 723 | K6: 706 | L6: 724
A7: 4 | B7: Jarno Langerak | C7: 31 | D7: =LARGE(I7:P7,1) -> 724 | E7: =LARGE(I7:P7,2) -> 724 | F7: =LARGE(I7:P7,3) -> 722 | G7: =SUM(D7:F7) -> 2170 | H7: =IF(E7<1,(G7/5),IF(F7<1,(G7/10),IF(F7>1,(G7/15)))) -> 144.6666667 | I7: 722 | J7: 708 | K7: 724 | L7: 680 | M7: 693 | N7: 724
A8: 5 | B8: Herman Depenbrock | C8: 40 | D8: =LARGE(I8:P8,1) -> 732 | E8: =LARGE(I8:P8,2) -> 715 | F8: =LARGE(I8:P8,3) -> 709 | G8: =SUM(D8:F8) -> 2156 | H8: =IF(E8<1,(G8/5),IF(F8<1,(G8/10),IF(F8>1,(G8/15)))) -> 143.7333333 | I8: 709 | J8: 708 | K8: 715 | L8: 732 | M8: 668
A9: 6 | B9: Sjaak de Vries | C9: 57 | D9: =LARGE(I9:P9,1) -> 709 | E9: =LARGE(I9:P9,2) -> 708 | F9: =LARGE(I9:P9,3) -> 703 | G9: =SUM(D9:F9) -> 2120 | H9: =IF(E9<1,(G9/5),IF(F9<1,(G9/10),IF(F9>1,(G9/15)))) -> 141.3333333 | I9: 690 | J9: 709 | K9: 708 | L9: 703
A10: 7 | B10: Jan Postma | C10: 58 | D10: =LARGE(I10:P10,1) -> 738 | E10: =LARGE(I10:P10,2) -> 687 | F10: =LARGE(I10:P10,3) -> 686 | G10: =SUM(D10:F10) -> 2111 | H10: =IF(E10<1,(G10/5),IF(F10<1,(G10/10),IF(F10>1,(G10/15)))) -> 140.7333333 | I10: 687 | J10: 738 | K10: 686
A11: 8 | B11: Heidi Hop | C11: 34 | D11: =LARGE(I11:P11,1) -> 720 | E11: =LARGE(I11:P11,2) -> 701 | F11: =LARGE(I11:P11,3) -> 681 | G11: =SUM(D11:F11) -> 2102 | H11: =IF(E11<1,(G11/5),IF(F11<1,(G11/10),IF(F11>1,(G11/15)))) -> 140.1333333 | I11: 720 | J11: 701 | K11: 660 | L11: 670 | M11: 681
A12: 9 | B12: Harry Beekman | C12: 54 | D12: =LARGE(I12:P12,1) -> 687 | E12: =LARGE(I12:P12,2) -> 677 | F12: =LARGE(I12:P12,3) -> 669 | G12: =SUM(D12:F12) -> 2033 | H12: =IF(E12<1,(G12/5),IF(F12<1,(G12/10),IF(F12>1,(G12/15)))) -> 135.5333333 | I12: 677 | J12: 687 | K12: 669
A13: 10 | B13: Bea Sneller | C13: 56 | D13: =LARGE(I13:P13,1) -> 700 | E13: =LARGE(I13:P13,2) -> 674 | F13: =LARGE(I13:P13,3) -> 658 | G13: =SUM(D13:F13) -> 2032 | H13: =IF(E13<1,(G13/5),IF(F13<1,(G13/10),IF(F13>1,(G13/15)))) -> 135.4666667 | I13: 700 | J13: 635 | K13: 674 | L13: 658
A14: 11 | B14: Hendry Wibiér | C14: 60 | D14: =LARGE(I14:P14,1) -> 690 | E14: =LARGE(I14:P14,2) -> 668 | F14: =LARGE(I14:P14,3) -> 655 | G14: =SUM(D14:F14) -> 2013 | H14: =IF(E14<1,(G14/5),IF(F14<1,(G14/10),IF(F14>1,(G14/15)))) -> 134.2 | I14: 668 | J14: 690 | K14: 655
A15: 12 | B15: Rinie Strank | C15: 27 | D15: =LARGE(I15:P15,1) -> 670 | E15: =LARGE(I15:P15,2) -> 633 | F15: =LARGE(I15:P15,3) -> 594 | G15: =SUM(D15:F15) -> 1897 | H15: =IF(E15<1,(G15/5),IF(F15<1,(G15/10),IF(F15>1,(G15/15)))) -> 126.4666667 | I15: 594 | J15: 633 | K15: 670
A16: 13 | D16: =LARGE(I16:P16,1) -> 0 | E16: =LARGE(I16:P16,2) -> 0 | F16: =LARGE(I16:P16,3) -> 0 | G16: =SUM(D16:F16) -> 0 | H16: =IF(E16<1,(G16/5),IF(F16<1,(G16/10),IF(F16>1,(G16/15)))) -> 0 | I16: 0 | J16: 0 | K16: 0
A17: 14 | D17: =LARGE(I17:P17,1) -> 0 | E17: =LARGE(I17:P17,2) -> 0 | F17: =LARGE(I17:P17,3) -> 0 | G17: =SUM(D17:F17) -> 0 | H17: =IF(E17<1,(G17/5),IF(F17<1,(G17/10),IF(F17>1,(G17/15)))) -> 0 | I17: 0 | J17: 0 | K17: 0
A18: 15 | D18: =LARGE(I18:P18,1) -> 0 | E18: =LARGE(I18:P18,2) -> 0 | F18: =LARGE(I18:P18,3) -> 0 | G18: =SUM(D18:F18) -> 0 | H18: =IF(E18<1,(G18/5),IF(F18<1,(G18/10),IF(F18>1,(G18/15)))) -> 0 | I18: 0 | J18: 0 | K18: 0
A19: 16 | D19: =LARGE(I19:P19,1) -> 0 | E19: =LARGE(I19:P19,2) -> 0 | F19: =LARGE(I19:P19,3) -> 0 | G19: =SUM(D19:F19) -> 0 | H19: =IF(E19<1,(G19/5),IF(F19<1,(G19/10),IF(F19>1,(G19/15)))) -> 0 | I19: 0 | J19: 0 | K19: 0
A20: 17 | D20: =LARGE(I20:P20,1) -> 0 | E20: =LARGE(I20:P20,2) -> 0 | F20: =LARGE(I20:P20,3) -> 0 | G20: =SUM(D20:F20) -> 0 | H20: =IF(E20<1,(G20/5),IF(F20<1,(G20/10),IF(F20>1,(G20/15)))) -> 0 | I20: 0 | J20: 0 | K20: 0
A21: 18 | D21: =LARGE(I21:P21,1) -> 0 | E21: =LARGE(I21:P21,2) -> 0 | F21: =LARGE(I21:P21,3) -> 0 | G21: =SUM(D21:F21) -> 0 | H21: =IF(E21<1,(G21/5),IF(F21<1,(G21/10),IF(F21>1,(G21/15)))) -> 0 | I21: 0 | J21: 0 | K21: 0
A22: 19 | D22: =LARGE(I22:P22,1) -> 0 | E22: =LARGE(I22:P22,2) -> 0 | F22: =LARGE(I22:P22,3) -> 0 | G22: =SUM(D22:F22) -> 0 | H22: =IF(E22<1,(G22/5),IF(F22<1,(G22/10),IF(F22>1,(G22/15)))) -> 0 | I22: 0 | J22: 0 | K22: 0
A23: 20 | D23: =LARGE(I23:P23,1) -> 0 | E23: =LARGE(I23:P23,2) -> 0 | F23: =LARGE(I23:P23,3) -> 0 | G23: =SUM(D23:F23) -> 0 | H23: =IF(E23<1,(G23/5),IF(F23<1,(G23/10),IF(F23>1,(G23/15)))) -> 0 | I23: 0 | J23: 0 | K23: 0
A24: 21 | D24: =LARGE(I24:P24,1) -> 0 | E24: =LARGE(I24:P24,2) -> 0 | F24: =LARGE(I24:P24,3) -> 0 | G24: =SUM(D24:F24) -> 0 | H24: =IF(E24<1,(G24/5),IF(F24<1,(G24/10),IF(F24>1,(G24/15)))) -> 0 | I24: 0 | J24: 0 | K24: 0
A25: 22 | D25: =LARGE(I25:P25,1) -> 0 | E25: =LARGE(I25:P25,2) -> 0 | F25: =LARGE(I25:P25,3) -> 0 | G25: =SUM(D25:F25) -> 0 | H25: =IF(E25<1,(G25/5),IF(F25<1,(G25/10),IF(F25>1,(G25/15)))) -> 0 | I25: 0 | J25: 0 | K25: 0
A26: 23 | D26: =LARGE(I26:P26,1) -> 0 | E26: =LARGE(I26:P26,2) -> 0 | F26: =LARGE(I26:P26,3) -> 0 | G26: =SUM(D26:F26) -> 0 | H26: =IF(E26<1,(G26/5),IF(F26<1,(G26/10),IF(F26>1,(G26/15)))) -> 0 | I26: 0 | J26: 0 | K26: 0
A27: 24 | D27: =LARGE(I27:P27,1) -> 0 | E27: =LARGE(I27:P27,2) -> 0 | F27: =LARGE(I27:P27,3) -> 0 | G27: =SUM(D27:F27) -> 0 | H27: =IF(E27<1,(G27/5),IF(F27<1,(G27/10),IF(F27>1,(G27/15)))) -> 0 | I27: 0 | J27: 0 | K27: 0
A28: 25 | D28: =LARGE(I28:P28,1) -> 0 | E28: =LARGE(I28:P28,2) -> 0 | F28: =LARGE(I28:P28,3) -> 0 | G28: =SUM(D28:F28) -> 0 | H28: =IF(E28<1,(G28/5),IF(F28<1,(G28/10),IF(F28>1,(G28/15)))) -> 0 | I28: 0 | J28: 0 | K28: 0
B29: Klasse B
B30: 135.01 - 140
A31: 1 | B31: Theo v d Ree Dolaard | C31: 38 | D31: =LARGE(I31:P31,1) -> 708 | E31: =LARGE(I31:P31,2) -> 695 | F31: =LARGE(I31:P31,3) -> 688 | G31: =SUM(D31:F31) -> 2091 | H31: =IF(E31<1,(G31/5),IF(F31<1,(G31/10),IF(F31>1,(G31/15)))) -> 139.4 | I31: 688 | J31: 683 | K31: 669 | L31: 649 | M31: 708 | N31: 695
A32: 2 | B32: Hans Heusinkveld | C32: 9 | D32: =LARGE(I32:P32,1) -> 720 | E32: =LARGE(I32:P32,2) -> 694 | F32: =LARGE(I32:P32,3) -> 670 | G32: =SUM(D32:F32) -> 2084 | H32: =IF(E32<1,(G32/5),IF(F32<1,(G32/10),IF(F32>1,(G32/15)))) -> 138.9333333 | I32: 670 | J32: 720 | K32: 659 | L32: 694
A33: 3 | B33: Wim Dunning | C33: 30 | D33: =LARGE(I33:P33,1) -> 693 | E33: =LARGE(I33:P33,2) -> 684 | F33: =LARGE(I33:P33,3) -> 670 | G33: =SUM(D33:F33) -> 2047 | H33: =IF(E33<1,(G33/5),IF(F33<1,(G33/10),IF(F33>1,(G33/15)))) -> 136.4666667 | I33: 684 | J33: 670 | K33: 647 | L33: 630 | M33: 693 | N33: 666
A34: 4 | B34: Janny Koops | C34: 46 | D34: =LARGE(I34:P34,1) -> 697 | E34: =LARGE(I34:P34,2) -> 661 | F34: =LARGE(I34:P34,3) -> 655 | G34: =SUM(D34:F34) -> 2013 | H34: =IF(E34<1,(G34/5),IF(F34<1,(G34/10),IF(F34>1,(G34/15)))) -> 134.2 | I34: 661 | J34: 697 | K34: 633 | L34: 655 | M34: 610
A35: 5 | B35: Marissa Tolsma | C35: 69 | D35: =LARGE(I35:P35,1) -> 681 | E35: =LARGE(I35:P35,2) -> 665 | F35: =LARGE(I35:P35,3) -> 649 | G35: =SUM(D35:F35) -> 1995 | H35: =IF(E35<1,(G35/5),IF(F35<1,(G35/10),IF(F35>1,(G35/15)))) -> 133 | I35: 630 | J35: 649 | K35: 665 | L35: 681
A36: 6 | B36: Jaap Huisman | C36: 63 | D36: =LARGE(I36:P36,1) -> 620 | E36: =LARGE(I36:P36,2) -> 0 | F36: =LARGE(I36:P36,3) -> 0 | G36: =SUM(D36:F36) -> 620 | H36: =IF(E36<1,(G36/5),IF(F36<1,(G36/10),IF(F36>1,(G36/15)))) -> 124 | I36: 620 | J36: 0 | K36: 0
A37: 7 | D37: =LARGE(I37:P37,1) -> 0 | E37: =LARGE(I37:P37,2) -> 0 | F37: =LARGE(I37:P37,3) -> 0 | G37: =SUM(D37:F37) -> 0 | H37: =IF(E37<1,(G37/5),IF(F37<1,(G37/10),IF(F37>1,(G37/15)))) -> 0 | I37: 0 | J37: 0 | K37: 0
A38: 8 | D38: =LARGE(I38:P38,1) -> 0 | E38: =LARGE(I38:P38,2) -> 0 | F38: =LARGE(I38:P38,3) -> 0 | G38: =SUM(D38:F38) -> 0 | H38: =IF(E38<1,(G38/5),IF(F38<1,(G38/10),IF(F38>1,(G38/15)))) -> 0 | I38: 0 | J38: 0 | K38: 0
A39: 9 | D39: =LARGE(I39:P39,1) -> 0 | E39: =LARGE(I39:P39,2) -> 0 | F39: =LARGE(I39:P39,3) -> 0 | G39: =SUM(D39:F39) -> 0 | H39: =IF(E39<1,(G39/5),IF(F39<1,(G39/10),IF(F39>1,(G39/15)))) -> 0 | I39: 0 | J39: 0 | K39: 0
A40: 10 | D40: =LARGE(I40:P40,1) -> 0 | E40: =LARGE(I40:P40,2) -> 0 | F40: =LARGE(I40:P40,3) -> 0 | G40: =SUM(D40:F40) -> 0 | H40: =IF(E40<1,(G40/5),IF(F40<1,(G40/10),IF(F40>1,(G40/15)))) -> 0 | I40: 0 | J40: 0 | K40: 0
A41: 11 | D41: =LARGE(I41:P41,1) -> 0 | E41: =LARGE(I41:P41,2) -> 0 | F41: =LARGE(I41:P41,3) -> 0 | G41: =SUM(D41:F41) -> 0 | H41: =IF(E41<1,(G41/5),IF(F41<1,(G41/10),IF(F41>1,(G41/15)))) -> 0 | I41: 0 | J41: 0 | K41: 0
A42: 12 | D42: =LARGE(I42:P42,1) -> 0 | E42: =LARGE(I42:P42,2) -> 0 | F42: =LARGE(I42:P42,3) -> 0 | G42: =SUM(D42:F42) -> 0 | H42: =IF(E42<1,(G42/5),IF(F42<1,(G42/10),IF(F42>1,(G42/15)))) -> 0 | I42: 0 | J42: 0 | K42: 0
A43: 13 | D43: =LARGE(I43:P43,1) -> 0 | E43: =LARGE(I43:P43,2) -> 0 | F43: =LARGE(I43:P43,3) -> 0 | G43: =SUM(D43:F43) -> 0 | H43: =IF(E43<1,(G43/5),IF(F43<1,(G43/10),IF(F43>1,(G43/15)))) -> 0 | I43: 0 | J43: 0 | K43: 0
A44: 14 | D44: =LARGE(I44:P44,1) -> 0 | E44: =LARGE(I44:P44,2) -> 0 | F44: =LARGE(I44:P44,3) -> 0 | G44: =SUM(D44:F44) -> 0 | H44: =IF(E44<1,(G44/5),IF(F44<1,(G44/10),IF(F44>1,(G44/15)))) -> 0 | I44: 0 | J44: 0 | K44: 0
A45: 15 | D45: =LARGE(I45:P45,1) -> 0 | E45: =LARGE(I45:P45,2) -> 0 | F45: =LARGE(I45:P45,3) -> 0 | G45: =SUM(D45:F45) -> 0 | H45: =IF(E45<1,(G45/5),IF(F45<1,(G45/10),IF(F45>1,(G45/15)))) -> 0 | I45: 0 | J45: 0 | K45: 0
A46: 16 | D46: =LARGE(I46:P46,1) -> 0 | E46: =LARGE(I46:P46,2) -> 0 | F46: =LARGE(I46:P46,3) -> 0 | G46: =SUM(D46:F46) -> 0 | H46: =IF(E46<1,(G46/5),IF(F46<1,(G46/10),IF(F46>1,(G46/15)))) -> 0 | I46: 0 | J46: 0 | K46: 0
A47: 17 | D47: =LARGE(I47:P47,1) -> 0 | E47: =LARGE(I47:P47,2) -> 0 | F47: =LARGE(I47:P47,3) -> 0 | G47: =SUM(D47:F47) -> 0 | H47: =IF(E47<1,(G47/5),IF(F47<1,(G47/10),IF(F47>1,(G47/15)))) -> 0 | I47: 0 | J47: 0 | K47: 0
A48: 18 | D48: =LARGE(I48:P48,1) -> 0 | E48: =LARGE(I48:P48,2) -> 0 | F48: =LARGE(I48:P48,3) -> 0 | G48: =SUM(D48:F48) -> 0 | H48: =IF(E48<1,(G48/5),IF(F48<1,(G48/10),IF(F48>1,(G48/15)))) -> 0 | I48: 0 | J48: 0 | K48: 0
A49: 19 | D49: =LARGE(I49:P49,1) -> 0 | E49: =LARGE(I49:P49,2) -> 0 | F49: =LARGE(I49:P49,3) -> 0 | G49: =SUM(D49:F49) -> 0 | H49: =IF(E49<1,(G49/5),IF(F49<1,(G49/10),IF(F49>1,(G49/15)))) -> 0 | I49: 0 | J49: 0 | K49: 0
A50: 20 | D50: =LARGE(I50:P50,1) -> 0 | E50: =LARGE(I50:P50,2) -> 0 | F50: =LARGE(I50:P50,3) -> 0 | G50: =SUM(D50:F50) -> 0 | H50: =IF(E50<1,(G50/5),IF(F50<1,(G50/10),IF(F50>1,(G50/15)))) -> 0 | I50: 0 | J50: 0 | K50: 0
A51: 21 | D51: =LARGE(I51:P51,1) -> 0 | E51: =LARGE(I51:P51,2) -> 0 | F51: =LARGE(I51:P51,3) -> 0 | G51: =SUM(D51:F51) -> 0 | H51: =IF(E51<1,(G51/5),IF(F51<1,(G51/10),IF(F51>1,(G51/15)))) -> 0 | I51: 0 | J51: 0 | K51: 0
A52: 22 | D52: =LARGE(I52:P52,1) -> 0 | E52: =LARGE(I52:P52,2) -> 0 | F52: =LARGE(I52:P52,3) -> 0 | G52: =SUM(D52:F52) -> 0 | H52: =IF(E52<1,(G52/5),IF(F52<1,(G52/10),IF(F52>1,(G52/15)))) -> 0 | I52: 0 | J52: 0 | K52: 0
A53: 23 | D53: =LARGE(I53:P53,1) -> 0 | E53: =LARGE(I53:P53,2) -> 0 | F53: =LARGE(I53:P53,3) -> 0 | G53: =SUM(D53:F53) -> 0 | H53: =IF(E53<1,(G53/5),IF(F53<1,(G53/10),IF(F53>1,(G53/15)))) -> 0 | I53: 0 | J53: 0 | K53: 0
A54: 24 | D54: =LARGE(I54:P54,1) -> 0 | E54: =LARGE(I54:P54,2) -> 0 | F54: =LARGE(I54:P54,3) -> 0 | G54: =SUM(D54:F54) -> 0 | H54: =IF(E54<1,(G54/5),IF(F54<1,(G54/10),IF(F54>1,(G54/15)))) -> 0 | I54: 0 | J54: 0 | K54: 0
A55: Stand | B55: Naam | C55: Inschrijf nr. | D55: 1e Hoogste | E55: 2e Hoogste | F55: 3e Hoogste | G55: Eindstand | H55: Gemiddelde | I55: 1e Kaart | J55: 2e Kaart | K55: 3e Kaart | L55: 4e Kaart | M55: 5e Kaart | N55: 6e Kaart | O55: 7e Kaart | P55: 8e Kaart
B56: Klasse C
B57: 130.01 - 135
A58: 1 | B58: Albert van Urk | C58: 48 | D58: =LARGE(I58:P58,1) -> 699 | E58: =LARGE(I58:P58,2) -> 684 | F58: =LARGE(I58:P58,3) -> 679 | G58: =SUM(D58:F58) -> 2062 | H58: =IF(E58<1,(G58/5),IF(F58<1,(G58/10),IF(F58>1,(G58/15)))) -> 137.4666667 | I58: 664 | J58: 679 | K58: 672 | L58: 684 | M58: 699
A59: 2 | B59: Iko van Elburg | C59: 51 | D59: =LARGE(I59:P59,1) -> 697 | E59: =LARGE(I59:P59,2) -> 685 | F59: =LARGE(I59:P59,3) -> 666 | G59: =SUM(D59:F59) -> 2048 | H59: =IF(E59<1,(G59/5),IF(F59<1,(G59/10),IF(F59>1,(G59/15)))) -> 136.5333333 | I59: 697 | J59: 664 | K59: 685 | L59: 666
A60: 3 | B60: Henk Veldman | C60: 29 | D60: =LARGE(I60:P60,1) -> 691 | E60: =LARGE(I60:P60,2) -> 679 | F60: =LARGE(I60:P60,3) -> 674 | G60: =SUM(D60:F60) -> 2044 | H60: =IF(E60<1,(G60/5),IF(F60<1,(G60/10),IF(F60>1,(G60/15)))) -> 136.2666667 | I60: 653 | J60: 654 | K60: 663 | L60: 674 | M60: 691 | N60: 679
A61: 4 | B61: Ronnie Zwiers | C61: 61 | D61: =LARGE(I61:P61,1) -> 684 | E61: =LARGE(I61:P61,2) -> 681 | F61: =LARGE(I61:P61,3) -> 661 | G61: =SUM(D61:F61) -> 2026 | H61: =IF(E61<1,(G61/5),IF(F61<1,(G61/10),IF(F61>1,(G61/15)))) -> 135.0666667 | I61: 681 | J61: 684 | K61: 647 | L61: 661
A62: 5 | B62: Gert Loch | C62: 37 | D62: =LARGE(I62:P62,1) -> 682 | E62: =LARGE(I62:P62,2) -> 657 | F62: =LARGE(I62:P62,3) -> 653 | G62: =SUM(D62:F62) -> 1992 | H62: =IF(E62<1,(G62/5),IF(F62<1,(G62/10),IF(F62>1,(G62/15)))) -> 132.8 | I62: 637 | J62: 627 | K62: 653 | L62: 682 | M62: 657 | N62: 636
A63: 6 | B63: Aly Beekman | C63: 55 | D63: =LARGE(I63:P63,1) -> 668 | E63: =LARGE(I63:P63,2) -> 656 | F63: =LARGE(I63:P63,3) -> 617 | G63: =SUM(D63:F63) -> 1941 | H63: =IF(E63<1,(G63/5),IF(F63<1,(G63/10),IF(F63>1,(G63/15)))) -> 129.4 | I63: 617 | J63: 656 | K63: 668
A64: 7 | D64: =LARGE(I64:P64,1) -> 0 | E64: =LARGE(I64:P64,2) -> 0 | F64: =LARGE(I64:P64,3) -> 0 | G64: =SUM(D64:F64) -> 0 | H64: =IF(E64<1,(G64/5),IF(F64<1,(G64/10),IF(F64>1,(G64/15)))) -> 0 | I64: 0 | J64: 0 | K64: 0
A65: 8 | D65: =LARGE(I65:P65,1) -> 0 | E65: =LARGE(I65:P65,2) -> 0 | F65: =LARGE(I65:P65,3) -> 0 | G65: =SUM(D65:F65) -> 0 | H65: =IF(E65<1,(G65/5),IF(F65<1,(G65/10),IF(F65>1,(G65/15)))) -> 0 | I65: 0 | J65: 0 | K65: 0
A66: 9 | D66: =LARGE(I66:P66,1) -> 0 | E66: =LARGE(I66:P66,2) -> 0 | F66: =LARGE(I66:P66,3) -> 0 | G66: =SUM(D66:F66) -> 0 | H66: =IF(E66<1,(G66/5),IF(F66<1,(G66/10),IF(F66>1,(G66/15)))) -> 0 | I66: 0 | J66: 0 | K66: 0
A67: 10 | D67: =LARGE(I67:P67,1) -> 0 | E67: =LARGE(I67:P67,2) -> 0 | F67: =LARGE(I67:P67,3) -> 0 | G67: =SUM(D67:F67) -> 0 | H67: =IF(E67<1,(G67/5),IF(F67<1,(G67/10),IF(F67>1,(G67/15)))) -> 0 | I67: 0 | J67: 0 | K67: 0
A68: 11 | D68: =LARGE(I68:P68,1) -> 0 | E68: =LARGE(I68:P68,2) -> 0 | F68: =LARGE(I68:P68,3) -> 0 | G68: =SUM(D68:F68) -> 0 | H68: =IF(E68<1,(G68/5),IF(F68<1,(G68/10),IF(F68>1,(G68/15)))) -> 0 | I68: 0 | J68: 0 | K68: 0
A69: 12 | D69: =LARGE(I69:P69,1) -> 0 | E69: =LARGE(I69:P69,2) -> 0 | F69: =LARGE(I69:P69,3) -> 0 | G69: =SUM(D69:F69) -> 0 | H69: =IF(E69<1,(G69/5),IF(F69<1,(G69/10),IF(F69>1,(G69/15)))) -> 0 | I69: 0 | J69: 0 | K69: 0
A70: 13 | D70: =LARGE(I70:P70,1) -> 0 | E70: =LARGE(I70:P70,2) -> 0 | F70: =LARGE(I70:P70,3) -> 0 | G70: =SUM(D70:F70) -> 0 | H70: =IF(E70<1,(G70/5),IF(F70<1,(G70/10),IF(F70>1,(G70/15)))) -> 0 | I70: 0 | J70: 0 | K70: 0
A71: 14 | D71: =LARGE(I71:P71,1) -> 0 | E71: =LARGE(I71:P71,2) -> 0 | F71: =LARGE(I71:P71,3) -> 0 | G71: =SUM(D71:F71) -> 0 | H71: =IF(E71<1,(G71/5),IF(F71<1,(G71/10),IF(F71>1,(G71/15)))) -> 0 | I71: 0 | J71: 0 | K71: 0
A72: 15 | D72: =LARGE(I72:P72,1) -> 0 | E72: =LARGE(I72:P72,2) -> 0 | F72: =LARGE(I72:P72,3) -> 0 | G72: =SUM(D72:F72) -> 0 | H72: =IF(E72<1,(G72/5),IF(F72<1,(G72/10),IF(F72>1,(G72/15)))) -> 0 | I72: 0 | J72: 0 | K72: 0
A73: 16 | D73: =LARGE(I73:P73,1) -> 0 | E73: =LARGE(I73:P73,2) -> 0 | F73: =LARGE(I73:P73,3) -> 0 | G73: =SUM(D73:F73) -> 0 | H73: =IF(E73<1,(G73/5),IF(F73<1,(G73/10),IF(F73>1,(G73/15)))) -> 0 | I73: 0 | J73: 0 | K73: 0
A74: 17 | D74: =LARGE(I74:P74,1) -> 0 | E74: =LARGE(I74:P74,2) -> 0 | F74: =LARGE(I74:P74,3) -> 0 | G74: =SUM(D74:F74) -> 0 | H74: =IF(E74<1,(G74/5),IF(F74<1,(G74/10),IF(F74>1,(G74/15)))) -> 0 | I74: 0 | J74: 0 | K74: 0
A75: 18 | D75: =LARGE(I75:P75,1) -> 0 | E75: =LARGE(I75:P75,2) -> 0 | F75: =LARGE(I75:P75,3) -> 0 | G75: =SUM(D75:F75) -> 0 | H75: =IF(E75<1,(G75/5),IF(F75<1,(G75/10),IF(F75>1,(G75/15)))) -> 0 | I75: 0 | J75: 0 | K75: 0
A76: 19 | D76: =LARGE(I76:P76,1) -> 0 | E76: =LARGE(I76:P76,2) -> 0 | F76: =LARGE(I76:P76,3) -> 0 | G76: =SUM(D76:F76) -> 0 | H76: =IF(E76<1,(G76/5),IF(F76<1,(G76/10),IF(F76>1,(G76/15)))) -> 0 | I76: 0 | J76: 0 | K76: 0
A77: 20 | D77: =LARGE(I77:P77,1) -> 0 | E77: =LARGE(I77:P77,2) -> 0 | F77: =LARGE(I77:P77,3) -> 0 | G77: =SUM(D77:F77) -> 0 | H77: =IF(E77<1,(G77/5),IF(F77<1,(G77/10),IF(F77>1,(G77/15)))) -> 0 | I77: 0 | J77: 0 | K77: 0
A78: 21 | D78: =LARGE(I78:P78,1) -> 0 | E78: =LARGE(I78:P78,2) -> 0 | F78: =LARGE(I78:P78,3) -> 0 | G78: =SUM(D78:F78) -> 0 | H78: =IF(E78<1,(G78/5),IF(F78<1,(G78/10),IF(F78>1,(G78/15)))) -> 0 | I78: 0 | J78: 0 | K78: 0
A79: 22 | D79: =LARGE(I79:P79,1) -> 0 | E79: =LARGE(I79:P79,2) -> 0 | F79: =LARGE(I79:P79,3) -> 0 | G79: =SUM(D79:F79) -> 0 | H79: =IF(E79<1,(G79/5),IF(F79<1,(G79/10),IF(F79>1,(G79/15)))) -> 0 | I79: 0 | J79: 0 | K79: 0
A80: 23 | D80: =LARGE(I80:P80,1) -> 0 | E80: =LARGE(I80:P80,2) -> 0 | F80: =LARGE(I80:P80,3) -> 0 | G80: =SUM(D80:F80) -> 0 | H80: =IF(E80<1,(G80/5),IF(F80<1,(G80/10),IF(F80>1,(G80/15)))) -> 0 | I80: 0 | J80: 0 | K80: 0
A81: 24 | D81: =LARGE(I81:P81,1) -> 0 | E81: =LARGE(I81:P81,2) -> 0 | F81: =LARGE(I81:P81,3) -> 0 | G81: =SUM(D81:F81) -> 0 | H81: =IF(E81<1,(G81/5),IF(F81<1,(G81/10),IF(F81>1,(G81/15)))) -> 0 | I81: 0 | J81: 0 | K81: 0
A82: 25 | D82: =LARGE(I82:P82,1) -> 0 | E82: =LARGE(I82:P82,2) -> 0 | F82: =LARGE(I82:P82,3) -> 0 | G82: =SUM(D82:F82) -> 0 | H82: =IF(E82<1,(G82/5),IF(F82<1,(G82/10),IF(F82>1,(G82/15)))) -> 0 | I82: 0 | J82: 0 | K82: 0
B83: Klasse D
B84: 125.01 - 130
A85: 1 | B85: Henk Ruitenberg | C85: 35 | D85: =LARGE(I85:P85,1) -> 681 | E85: =LARGE(I85:P85,2) -> 661 | F85: =LARGE(I85:P85,3) -> 657 | G85: =SUM(D85:F85) -> 1999 | H85: =IF(E85<1,(G85/5),IF(F85<1,(G85/10),IF(F85>1,(G85/15)))) -> 133.2666667 | I85: 638 | J85: 657 | K85: 632 | L85: 661 | M85: 631 | N85: 681
A86: 2 | B86: Lammert Kiers | C86: 32 | D86: =LARGE(I86:P86,1) -> 690 | E86: =LARGE(I86:P86,2) -> 665 | F86: =LARGE(I86:P86,3) -> 640 | G86: =SUM(D86:F86) -> 1995 | H86: =IF(E86<1,(G86/5),IF(F86<1,(G86/10),IF(F86>1,(G86/15)))) -> 133 | I86: 620 | J86: 622 | K86: 630 | L86: 628 | M86: 665 | N86: 640 | O86: 690
A87: 3 | B87: Jaap Ploeger | C87: 49 | D87: =LARGE(I87:P87,1) -> 668 | E87: =LARGE(I87:P87,2) -> 656 | F87: =LARGE(I87:P87,3) -> 651 | G87: =SUM(D87:F87) -> 1975 | H87: =IF(E87<1,(G87/5),IF(F87<1,(G87/10),IF(F87>1,(G87/15)))) -> 131.6666667 | I87: 668 | J87: 651 | K87: 656 | L87: 615
A88: 4 | B88: Hennie Kiers | C88: 33 | D88: =LARGE(I88:P88,1) -> 614 | E88: =LARGE(I88:P88,2) -> 612 | F88: =LARGE(I88:P88,3) -> 593 | G88: =SUM(D88:F88) -> 1819 | H88: =IF(E88<1,(G88/5),IF(F88<1,(G88/10),IF(F88>1,(G88/15)))) -> 121.2666667 | I88: 612 | J88: 511 | K88: 586 | L88: 593 | M88: 614 | N88: 583
A89: 5 | B89: Henk Depenbrock | C89: 41 | D89: =LARGE(I89:P89,1) -> 602 | E89: =LARGE(I89:P89,2) -> 602 | F89: =LARGE(I89:P89,3) -> 0 | G89: =SUM(D89:F89) -> 1204 | H89: =IF(E89<1,(G89/5),IF(F89<1,(G89/10),IF(F89>1,(G89/15)))) -> 120.4 | I89: 602 | J89: 602 | K89: 0
A90: 6 | D90: =LARGE(I90:P90,1) -> 0 | E90: =LARGE(I90:P90,2) -> 0 | F90: =LARGE(I90:P90,3) -> 0 | G90: =SUM(D90:F90) -> 0 | H90: =IF(E90<1,(G90/5),IF(F90<1,(G90/10),IF(F90>1,(G90/15)))) -> 0 | I90: 0 | J90: 0 | K90: 0
A91: 7 | D91: =LARGE(I91:P91,1) -> 0 | E91: =LARGE(I91:P91,2) -> 0 | F91: =LARGE(I91:P91,3) -> 0 | G91: =SUM(D91:F91) -> 0 | H91: =IF(E91<1,(G91/5),IF(F91<1,(G91/10),IF(F91>1,(G91/15)))) -> 0 | I91: 0 | J91: 0 | K91: 0
A92: 8 | D92: =LARGE(I92:P92,1) -> 0 | E92: =LARGE(I92:P92,2) -> 0 | F92: =LARGE(I92:P92,3) -> 0 | G92: =SUM(D92:F92) -> 0 | H92: =IF(E92<1,(G92/5),IF(F92<1,(G92/10),IF(F92>1,(G92/15)))) -> 0 | I92: 0 | J92: 0 | K92: 0
A93: 9 | D93: =LARGE(I93:P93,1) -> 0 | E93: =LARGE(I93:P93,2) -> 0 | F93: =LARGE(I93:P93,3) -> 0 | G93: =SUM(D93:F93) -> 0 | H93: =IF(E93<1,(G93/5),IF(F93<1,(G93/10),IF(F93>1,(G93/15)))) -> 0 | I93: 0 | J93: 0 | K93: 0
A94: 10 | D94: =LARGE(I94:P94,1) -> 0 | E94: =LARGE(I94:P94,2) -> 0 | F94: =LARGE(I94:P94,3) -> 0 | G94: =SUM(D94:F94) -> 0 | H94: =IF(E94<1,(G94/5),IF(F94<1,(G94/10),IF(F94>1,(G94/15)))) -> 0 | I94: 0 | J94: 0 | K94: 0
A95: 11 | D95: =LARGE(I95:P95,1) -> 0 | E95: =LARGE(I95:P95,2) -> 0 | F95: =LARGE(I95:P95,3) -> 0 | G95: =SUM(D95:F95) -> 0 | H95: =IF(E95<1,(G95/5),IF(F95<1,(G95/10),IF(F95>1,(G95/15)))) -> 0 | I95: 0 | J95: 0 | K95: 0
A96: 12 | D96: =LARGE(I96:P96,1) -> 0 | E96: =LARGE(I96:P96,2) -> 0 | F96: =LARGE(I96:P96,3) -> 0 | G96: =SUM(D96:F96) -> 0 | H96: =IF(E96<1,(G96/5),IF(F96<1,(G96/10),IF(F96>1,(G96/15)))) -> 0 | I96: 0 | J96: 0 | K96: 0
A97: 13 | D97: =LARGE(I97:P97,1) -> 0 | E97: =LARGE(I97:P97,2) -> 0 | F97: =LARGE(I97:P97,3) -> 0 | G97: =SUM(D97:F97) -> 0 | H97: =IF(E97<1,(G97/5),IF(F97<1,(G97/10),IF(F97>1,(G97/15)))) -> 0 | I97: 0 | J97: 0 | K97: 0
A98: 14 | D98: =LARGE(I98:P98,1) -> 0 | E98: =LARGE(I98:P98,2) -> 0 | F98: =LARGE(I98:P98,3) -> 0 | G98: =SUM(D98:F98) -> 0 | H98: =IF(E98<1,(G98/5),IF(F98<1,(G98/10),IF(F98>1,(G98/15)))) -> 0 | I98: 0 | J98: 0 | K98: 0
A99: 15 | D99: =LARGE(I99:P99,1) -> 0 | E99: =LARGE(I99:P99,2) -> 0 | F99: =LARGE(I99:P99,3) -> 0 | G99: =SUM(D99:F99) -> 0 | H99: =IF(E99<1,(G99/5),IF(F99<1,(G99/10),IF(F99>1,(G99/15)))) -> 0 | I99: 0 | J99: 0 | K99: 0
A100: 16 | D100: =LARGE(I100:P100,1) -> 0 | E100: =LARGE(I100:P100,2) -> 0 | F100: =LARGE(I100:P100,3) -> 0 | G100: =SUM(D100:F100) -> 0 | H100: =IF(E100<1,(G100/5),IF(F100<1,(G100/10),IF(F100>1,(G100/15)))) -> 0 | I100: 0 | J100: 0 | K100: 0
A101: 17 | D101: =LARGE(I101:P101,1) -> 0 | E101: =LARGE(I101:P101,2) -> 0 | F101: =LARGE(I101:P101,3) -> 0 | G101: =SUM(D101:F101) -> 0 | H101: =IF(E101<1,(G101/5),IF(F101<1,(G101/10),IF(F101>1,(G101/15)))) -> 0 | I101: 0 | J101: 0 | K101: 0
A102: 18 | D102: =LARGE(I102:P102,1) -> 0 | E102: =LARGE(I102:P102,2) -> 0 | F102: =LARGE(I102:P102,3) -> 0 | G102: =SUM(D102:F102) -> 0 | H102: =IF(E102<1,(G102/5),IF(F102<1,(G102/10),IF(F102>1,(G102/15)))) -> 0 | I102: 0 | J102: 0 | K102: 0
A103: 19 | D103: =LARGE(I103:P103,1) -> 0 | E103: =LARGE(I103:P103,2) -> 0 | F103: =LARGE(I103:P103,3) -> 0 | G103: =SUM(D103:F103) -> 0 | H103: =IF(E103<1,(G103/5),IF(F103<1,(G103/10),IF(F103>1,(G103/15)))) -> 0 | I103: 0 | J103: 0 | K103: 0
A104: 20 | D104: =LARGE(I104:P104,1) -> 0 | E104: =LARGE(I104:P104,2) -> 0 | F104: =LARGE(I104:P104,3) -> 0 | G104: =SUM(D104:F104) -> 0 | H104: =IF(E104<1,(G104/5),IF(F104<1,(G104/10),IF(F104>1,(G104/15)))) -> 0 | I104: 0 | J104: 0 | K104: 0
A105: 21 | D105: =LARGE(I105:P105,1) -> 0 | E105: =LARGE(I105:P105,2) -> 0 | F105: =LARGE(I105:P105,3) -> 0 | G105: =SUM(D105:F105) -> 0 | H105: =IF(E105<1,(G105/5),IF(F105<1,(G105/10),IF(F105>1,(G105/15)))) -> 0 | I105: 0 | J105: 0 | K105: 0
A106: 22 | D106: =LARGE(I106:P106,1) -> 0 | E106: =LARGE(I106:P106,2) -> 0 | F106: =LARGE(I106:P106,3) -> 0 | G106: =SUM(D106:F106) -> 0 | H106: =IF(E106<1,(G106/5),IF(F106<1,(G106/10),IF(F106>1,(G106/15)))) -> 0 | I106: 0 | J106: 0 | K106: 0
A107: 23 | D107: =LARGE(I107:P107,1) -> 0 | E107: =LARGE(I107:P107,2) -> 0 | F107: =LARGE(I107:P107,3) -> 0 | G107: =SUM(D107:F107) -> 0 | H107: =IF(E107<1,(G107/5),IF(F107<1,(G107/10),IF(F107>1,(G107/15)))) -> 0 | I107: 0 | J107: 0 | K107: 0
A108: 24 | D108: =LARGE(I108:P108,1) -> 0 | E108: =LARGE(I108:P108,2) -> 0 | F108: =LARGE(I108:P108,3) -> 0 | G108: =SUM(D108:F108) -> 0 | H108: =IF(E108<1,(G108/5),IF(F108<1,(G108/10),IF(F108>1,(G108/15)))) -> 0 | I108: 0 | J108: 0 | K108: 0
A109: Stand | B109: Naam | C109: Inschrijf nr. | D109: 1e Hoogste | E109: 2e Hoogste | F109: 3e Hoogste | G109: Eindstand | H109: Gemiddelde | I109: 1e Kaart | J109: 2e Kaart | K109: 3e Kaart | L109: 4e Kaart | M109: 5e Kaart | N109: 6e Kaart | O109: 7e Kaart | P109: 8e Kaart
B110: Klasse E
B111: 120.01 - 125
A112: 1 | B112: Herman Brokelman | C112: 59 | D112: =LARGE(I112:P112,1) -> 670 | E112: =LARGE(I112:P112,2) -> 668 | F112: =LARGE(I112:P112,3) -> 664 | G112: =SUM(D112:F112) -> 2002 | H112: =IF(E112<1,(G112/5),IF(F112<1,(G112/10),IF(F112>1,(G112/15)))) -> 133.4666667 | I112: 664 | J112: 668 | K112: 657 | L112: 670
A113: 2 | B113: Jacob Strating | C113: 7 | D113: =LARGE(I113:P113,1) -> 680 | E113: =LARGE(I113:P113,2) -> 679 | F113: =LARGE(I113:P113,3) -> 629 | G113: =SUM(D113:F113) -> 1988 | H113: =IF(E113<1,(G113/5),IF(F113<1,(G113/10),IF(F113>1,(G113/15)))) -> 132.5333333 | I113: 617 | J113: 592 | K113: 598 | L113: 551 | M113: 629 | N113: 680 | O113: 679
A114: 3 | B114: Jan Zwiers | C114: 3 | D114: =LARGE(I114:P114,1) -> 659 | E114: =LARGE(I114:P114,2) -> 659 | F114: =LARGE(I114:P114,3) -> 652 | G114: =SUM(D114:F114) -> 1970 | H114: =IF(E114<1,(G114/5),IF(F114<1,(G114/10),IF(F114>1,(G114/15)))) -> 131.3333333 | I114: 614 | J114: 637 | K114: 645 | L114: 659 | M114: 659 | N114: 652 | O114: 582
A115: 4 | B115: Jan van der Sleen | C115: 5 | D115: =LARGE(I115:P115,1) -> 665 | E115: =LARGE(I115:P115,2) -> 651 | F115: =LARGE(I115:P115,3) -> 644 | G115: =SUM(D115:F115) -> 1960 | H115: =IF(E115<1,(G115/5),IF(F115<1,(G115/10),IF(F115>1,(G115/15)))) -> 130.6666667 | I115: 644 | J115: 584 | K115: 632 | L115: 613 | M115: 665 | N115: 651
A116: 5 | B116: Fred Heijerman | C116: 6 | D116: =LARGE(I116:P116,1) -> 653 | E116: =LARGE(I116:P116,2) -> 651 | F116: =LARGE(I116:P116,3) -> 622 | G116: =SUM(D116:F116) -> 1926 | H116: =IF(E116<1,(G116/5),IF(F116<1,(G116/10),IF(F116>1,(G116/15)))) -> 128.4 | I116: 608 | J116: 579 | K116: 622 | L116: 653 | M116: 610 | N116: 607 | O116: 651
A117: 6 | B117: Marten Boskamp | C117: 11 | D117: =LARGE(I117:P117,1) -> 661 | E117: =LARGE(I117:P117,2) -> 641 | F117: =LARGE(I117:P117,3) -> 608 | G117: =SUM(D117:F117) -> 1910 | H117: =IF(E117<1,(G117/5),IF(F117<1,(G117/10),IF(F117>1,(G117/15)))) -> 127.3333333 | I117: 608 | J117: 641 | K117: 544 | L117: 661 | M117: 569
A118: 7 | B118: Demi Willems | C118: 14 | D118: =LARGE(I118:P118,1) -> 658 | E118: =LARGE(I118:P118,2) -> 615 | F118: =LARGE(I118:P118,3) -> 614 | G118: =SUM(D118:F118) -> 1887 | H118: =IF(E118<1,(G118/5),IF(F118<1,(G118/10),IF(F118>1,(G118/15)))) -> 125.8 | I118: 605 | J118: 611 | K118: 600 | L118: 615 | M118: 658 | N118: 614 | O118: 603
A119: 8 | B119: Jaap Prins | C119: 21 | D119: =LARGE(I119:P119,1) -> 648 | E119: =LARGE(I119:P119,2) -> 621 | F119: =LARGE(I119:P119,3) -> 610 | G119: =SUM(D119:F119) -> 1879 | H119: =IF(E119<1,(G119/5),IF(F119<1,(G119/10),IF(F119>1,(G119/15)))) -> 125.2666667 | I119: 610 | J119: 621 | K119: 574 | L119: 562 | M119: 586 | N119: 648
A120: 9 | B120: Cristha Fennema | C120: 72 | D120: =LARGE(I120:P120,1) -> 636 | E120: =LARGE(I120:P120,2) -> 624 | F120: =LARGE(I120:P120,3) -> 589 | G120: =SUM(D120:F120) -> 1849 | H120: =IF(E120<1,(G120/5),IF(F120<1,(G120/10),IF(F120>1,(G120/15)))) -> 123.2666667 | I120: 624 | J120: 589 | K120: 636
A121: 10 | B121: Roelof Hekman | C121: 39 | D121: =LARGE(I121:P121,1) -> 639 | E121: =LARGE(I121:P121,2) -> 600 | F121: =LARGE(I121:P121,3) -> 578 | G121: =SUM(D121:F121) -> 1817 | H121: =IF(E121<1,(G121/5),IF(F121<1,(G121/10),IF(F121>1,(G121/15)))) -> 121.1333333 | I121: 578 | J121: 639 | K121: 600
A122: 11 | B122: Jan Dolfsma | C122: 13 | D122: =LARGE(I122:P122,1) -> 627 | E122: =LARGE(I122:P122,2) -> 595 | F122: =LARGE(I122:P122,3) -> 582 | G122: =SUM(D122:F122) -> 1804 | H122: =IF(E122<1,(G122/5),IF(F122<1,(G122/10),IF(F122>1,(G122/15)))) -> 120.2666667 | I122: 575 | J122: 582 | K122: 581 | L122: 595 | M122: 627
A123: 12 | B123: Gemma Berends | C123: 28 | D123: =LARGE(I123:P123,1) -> 593 | E123: =LARGE(I123:P123,2) -> 557 | F123: =LARGE(I123:P123,3) -> 533 | G123: =SUM(D123:F123) -> 1683 | H123: =IF(E123<1,(G123/5),IF(F123<1,(G123/10),IF(F123>1,(G123/15)))) -> 112.2 | I123: 557 | J123: 533 | K123: 593
A124: 13 | D124: =LARGE(I124:P124,1) -> 0 | E124: =LARGE(I124:P124,2) -> 0 | F124: =LARGE(I124:P124,3) -> 0 | G124: =SUM(D124:F124) -> 0 | H124: =IF(E124<1,(G124/5),IF(F124<1,(G124/10),IF(F124>1,(G124/15)))) -> 0 | I124: 0 | J124: 0 | K124: 0
A125: 14 | D125: =LARGE(I125:P125,1) -> 0 | E125: =LARGE(I125:P125,2) -> 0 | F125: =LARGE(I125:P125,3) -> 0 | G125: =SUM(D125:F125) -> 0 | H125: =IF(E125<1,(G125/5),IF(F125<1,(G125/10),IF(F125>1,(G125/15)))) -> 0 | I125: 0 | J125: 0 | K125: 0
A126: 15 | D126: =LARGE(I126:P126,1) -> 0 | E126: =LARGE(I126:P126,2) -> 0 | F126: =LARGE(I126:P126,3) -> 0 | G126: =SUM(D126:F126) -> 0 | H126: =IF(E126<1,(G126/5),IF(F126<1,(G126/10),IF(F126>1,(G126/15)))) -> 0 | I126: 0 | J126: 0 | K126: 0
A127: 16 | D127: =LARGE(I127:P127,1) -> 0 | E127: =LARGE(I127:P127,2) -> 0 | F127: =LARGE(I127:P127,3) -> 0 | G127: =SUM(D127:F127) -> 0 | H127: =IF(E127<1,(G127/5),IF(F127<1,(G127/10),IF(F127>1,(G127/15)))) -> 0 | I127: 0 | J127: 0 | K127: 0
A128: 17 | D128: =LARGE(I128:P128,1) -> 0 | E128: =LARGE(I128:P128,2) -> 0 | F128: =LARGE(I128:P128,3) -> 0 | G128: =SUM(D128:F128) -> 0 | H128: =IF(E128<1,(G128/5),IF(F128<1,(G128/10),IF(F128>1,(G128/15)))) -> 0 | I128: 0 | J128: 0 | K128: 0
A129: 18 | D129: =LARGE(I129:P129,1) -> 0 | E129: =LARGE(I129:P129,2) -> 0 | F129: =LARGE(I129:P129,3) -> 0 | G129: =SUM(D129:F129) -> 0 | H129: =IF(E129<1,(G129/5),IF(F129<1,(G129/10),IF(F129>1,(G129/15)))) -> 0 | I129: 0 | J129: 0 | K129: 0
A130: 19 | D130: =LARGE(I130:P130,1) -> 0 | E130: =LARGE(I130:P130,2) -> 0 | F130: =LARGE(I130:P130,3) -> 0 | G130: =SUM(D130:F130) -> 0 | H130: =IF(E130<1,(G130/5),IF(F130<1,(G130/10),IF(F130>1,(G130/15)))) -> 0 | I130: 0 | J130: 0 | K130: 0
A131: 20 | D131: =LARGE(I131:P131,1) -> 0 | E131: =LARGE(I131:P131,2) -> 0 | F131: =LARGE(I131:P131,3) -> 0 | G131: =SUM(D131:F131) -> 0 | H131: =IF(E131<1,(G131/5),IF(F131<1,(G131/10),IF(F131>1,(G131/15)))) -> 0 | I131: 0 | J131: 0 | K131: 0
A132: 21 | D132: =LARGE(I132:P132,1) -> 0 | E132: =LARGE(I132:P132,2) -> 0 | F132: =LARGE(I132:P132,3) -> 0 | G132: =SUM(D132:F132) -> 0 | H132: =IF(E132<1,(G132/5),IF(F132<1,(G132/10),IF(F132>1,(G132/15)))) -> 0 | I132: 0 | J132: 0 | K132: 0
A133: 22 | D133: =LARGE(I133:P133,1) -> 0 | E133: =LARGE(I133:P133,2) -> 0 | F133: =LARGE(I133:P133,3) -> 0 | G133: =SUM(D133:F133) -> 0 | H133: =IF(E133<1,(G133/5),IF(F133<1,(G133/10),IF(F133>1,(G133/15)))) -> 0 | I133: 0 | J133: 0 | K133: 0
A134: 23 | D134: =LARGE(I134:P134,1) -> 0 | E134: =LARGE(I134:P134,2) -> 0 | F134: =LARGE(I134:P134,3) -> 0 | G134: =SUM(D134:F134) -> 0 | H134: =IF(E134<1,(G134/5),IF(F134<1,(G134/10),IF(F134>1,(G134/15)))) -> 0 | I134: 0 | J134: 0 | K134: 0
A135: 24 | D135: =LARGE(I135:P135,1) -> 0 | E135: =LARGE(I135:P135,2) -> 0 | F135: =LARGE(I135:P135,3) -> 0 | G135: =SUM(D135:F135) -> 0 | H135: =IF(E135<1,(G135/5),IF(F135<1,(G135/10),IF(F135>1,(G135/15)))) -> 0 | I135: 0 | J135: 0 | K135: 0
A136: 25 | D136: =LARGE(I136:P136,1) -> 0 | E136: =LARGE(I136:P136,2) -> 0 | F136: =LARGE(I136:P136,3) -> 0 | G136: =SUM(D136:F136) -> 0 | H136: =IF(E136<1,(G136/5),IF(F136<1,(G136/10),IF(F136>1,(G136/15)))) -> 0 | I136: 0 | J136: 0 | K136: 0
B137: Klasse F
B138: 115.01 - 120
A139: 1 | B139: Clemense Bekhof | C139: 22 | D139: =LARGE(I139:P139,1) -> 655 | E139: =LARGE(I139:P139,2) -> 653 | F139: =LARGE(I139:P139,3) -> 649 | G139: =SUM(D139:F139) -> 1957 | H139: =IF(E139<1,(G139/5),IF(F139<1,(G139/10),IF(F139>1,(G139/15)))) -> 130.4666667 | I139: 570 | J139: 592 | K139: 618 | L139: 655 | M139: 653 | N139: 649
A140: 2 | B140: Janny Beens | C140: 19 | D140: =LARGE(I140:P140,1) -> 609 | E140: =LARGE(I140:P140,2) -> 602 | F140: =LARGE(I140:P140,3) -> 571 | G140: =SUM(D140:F140) -> 1782 | H140: =IF(E140<1,(G140/5),IF(F140<1,(G140/10),IF(F140>1,(G140/15)))) -> 118.8 | I140: 528 | J140: 568 | K140: 568 | L140: 571 | M140: 609 | N140: 552 | O140: 602
A141: 3 | B141: Jansje Kornet | C141: 16 | D141: =LARGE(I141:P141,1) -> 595 | E141: =LARGE(I141:P141,2) -> 592 | F141: =LARGE(I141:P141,3) -> 591 | G141: =SUM(D141:F141) -> 1778 | H141: =IF(E141<1,(G141/5),IF(F141<1,(G141/10),IF(F141>1,(G141/15)))) -> 118.5333333 | I141: 461 | J141: 548 | K141: 591 | L141: 583 | M141: 595 | N141: 592
A142: 4 | B142: Rinsje Boskamp | C142: 12 | D142: =LARGE(I142:P142,1) -> 567 | E142: =LARGE(I142:P142,2) -> 551 | F142: =LARGE(I142:P142,3) -> 519 | G142: =SUM(D142:F142) -> 1637 | H142: =IF(E142<1,(G142/5),IF(F142<1,(G142/10),IF(F142>1,(G142/15)))) -> 109.1333333 | I142: 519 | J142: 551 | K142: 567
A143: 5 | B143: Tiny Ploeger | C143: 50 | D143: =LARGE(I143:P143,1) -> 424 | E143: =LARGE(I143:P143,2) -> 0 | F143: =LARGE(I143:P143,3) -> 0 | G143: =SUM(D143:F143) -> 424 | H143: =IF(E143<1,(G143/5),IF(F143<1,(G143/10),IF(F143>1,(G143/15)))) -> 84.8 | I143: 424 | J143: 0 | K143: 0
A144: 6 | D144: =LARGE(I144:P144,1) -> 0 | E144: =LARGE(I144:P144,2) -> 0 | F144: =LARGE(I144:P144,3) -> 0 | G144: =SUM(D144:F144) -> 0 | H144: =IF(E144<1,(G144/5),IF(F144<1,(G144/10),IF(F144>1,(G144/15)))) -> 0 | I144: 0 | J144: 0 | K144: 0
A145: 7 | D145: =LARGE(I145:P145,1) -> 0 | E145: =LARGE(I145:P145,2) -> 0 | F145: =LARGE(I145:P145,3) -> 0 | G145: =SUM(D145:F145) -> 0 | H145: =IF(E145<1,(G145/5),IF(F145<1,(G145/10),IF(F145>1,(G145/15)))) -> 0 | I145: 0 | J145: 0 | K145: 0
A146: 8 | D146: =LARGE(I146:P146,1) -> 0 | E146: =LARGE(I146:P146,2) -> 0 | F146: =LARGE(I146:P146,3) -> 0 | G146: =SUM(D146:F146) -> 0 | H146: =IF(E146<1,(G146/5),IF(F146<1,(G146/10),IF(F146>1,(G146/15)))) -> 0 | I146: 0 | J146: 0 | K146: 0
A147: 9 | D147: =LARGE(I147:P147,1) -> 0 | E147: =LARGE(I147:P147,2) -> 0 | F147: =LARGE(I147:P147,3) -> 0 | G147: =SUM(D147:F147) -> 0 | H147: =IF(E147<1,(G147/5),IF(F147<1,(G147/10),IF(F147>1,(G147/15)))) -> 0 | I147: 0 | J147: 0 | K147: 0
A148: 10 | D148: =LARGE(I148:P148,1) -> 0 | E148: =LARGE(I148:P148,2) -> 0 | F148: =LARGE(I148:P148,3) -> 0 | G148: =SUM(D148:F148) -> 0 | H148: =IF(E148<1,(G148/5),IF(F148<1,(G148/10),IF(F148>1,(G148/15)))) -> 0 | I148: 0 | J148: 0 | K148: 0
A149: 11 | D149: =LARGE(I149:P149,1) -> 0 | E149: =LARGE(I149:P149,2) -> 0 | F149: =LARGE(I149:P149,3) -> 0 | G149: =SUM(D149:F149) -> 0 | H149: =IF(E149<1,(G149/5),IF(F149<1,(G149/10),IF(F149>1,(G149/15)))) -> 0 | I149: 0 | J149: 0 | K149: 0
A150: 12 | D150: =LARGE(I150:P150,1) -> 0 | E150: =LARGE(I150:P150,2) -> 0 | F150: =LARGE(I150:P150,3) -> 0 | G150: =SUM(D150:F150) -> 0 | H150: =IF(E150<1,(G150/5),IF(F150<1,(G150/10),IF(F150>1,(G150/15)))) -> 0 | I150: 0 | J150: 0 | K150: 0
A151: 13 | D151: =LARGE(I151:P151,1) -> 0 | E151: =LARGE(I151:P151,2) -> 0 | F151: =LARGE(I151:P151,3) -> 0 | G151: =SUM(D151:F151) -> 0 | H151: =IF(E151<1,(G151/5),IF(F151<1,(G151/10),IF(F151>1,(G151/15)))) -> 0 | I151: 0 | J151: 0 | K151: 0
A152: 14 | D152: =LARGE(I152:P152,1) -> 0 | E152: =LARGE(I152:P152,2) -> 0 | F152: =LARGE(I152:P152,3) -> 0 | G152: =SUM(D152:F152) -> 0 | H152: =IF(E152<1,(G152/5),IF(F152<1,(G152/10),IF(F152>1,(G152/15)))) -> 0 | I152: 0 | J152: 0 | K152: 0
A153: 15 | D153: =LARGE(I153:P153,1) -> 0 | E153: =LARGE(I153:P153,2) -> 0 | F153: =LARGE(I153:P153,3) -> 0 | G153: =SUM(D153:F153) -> 0 | H153: =IF(E153<1,(G153/5),IF(F153<1,(G153/10),IF(F153>1,(G153/15)))) -> 0 | I153: 0 | J153: 0 | K153: 0
A154: 16 | D154: =LARGE(I154:P154,1) -> 0 | E154: =LARGE(I154:P154,2) -> 0 | F154: =LARGE(I154:P154,3) -> 0 | G154: =SUM(D154:F154) -> 0 | H154: =IF(E154<1,(G154/5),IF(F154<1,(G154/10),IF(F154>1,(G154/15)))) -> 0 | I154: 0 | J154: 0 | K154: 0
A155: 17 | D155: =LARGE(I155:P155,1) -> 0 | E155: =LARGE(I155:P155,2) -> 0 | F155: =LARGE(I155:P155,3) -> 0 | G155: =SUM(D155:F155) -> 0 | H155: =IF(E155<1,(G155/5),IF(F155<1,(G155/10),IF(F155>1,(G155/15)))) -> 0 | I155: 0 | J155: 0 | K155: 0
A156: 18 | D156: =LARGE(I156:P156,1) -> 0 | E156: =LARGE(I156:P156,2) -> 0 | F156: =LARGE(I156:P156,3) -> 0 | G156: =SUM(D156:F156) -> 0 | H156: =IF(E156<1,(G156/5),IF(F156<1,(G156/10),IF(F156>1,(G156/15)))) -> 0 | I156: 0 | J156: 0 | K156: 0
A157: 19 | D157: =LARGE(I157:P157,1) -> 0 | E157: =LARGE(I157:P157,2) -> 0 | F157: =LARGE(I157:P157,3) -> 0 | G157: =SUM(D157:F157) -> 0 | H157: =IF(E157<1,(G157/5),IF(F157<1,(G157/10),IF(F157>1,(G157/15)))) -> 0 | I157: 0 | J157: 0 | K157: 0
A158: 20 | D158: =LARGE(I158:P158,1) -> 0 | E158: =LARGE(I158:P158,2) -> 0 | F158: =LARGE(I158:P158,3) -> 0 | G158: =SUM(D158:F158) -> 0 | H158: =IF(E158<1,(G158/5),IF(F158<1,(G158/10),IF(F158>1,(G158/15)))) -> 0 | I158: 0 | J158: 0 | K158: 0
A159: 21 | D159: =LARGE(I159:P159,1) -> 0 | E159: =LARGE(I159:P159,2) -> 0 | F159: =LARGE(I159:P159,3) -> 0 | G159: =SUM(D159:F159) -> 0 | H159: =IF(E159<1,(G159/5),IF(F159<1,(G159/10),IF(F159>1,(G159/15)))) -> 0 | I159: 0 | J159: 0 | K159: 0
A160: 22 | D160: =LARGE(I160:P160,1) -> 0 | E160: =LARGE(I160:P160,2) -> 0 | F160: =LARGE(I160:P160,3) -> 0 | G160: =SUM(D160:F160) -> 0 | H160: =IF(E160<1,(G160/5),IF(F160<1,(G160/10),IF(F160>1,(G160/15)))) -> 0 | I160: 0 | J160: 0 | K160: 0
A161: 23 | D161: =LARGE(I161:P161,1) -> 0 | E161: =LARGE(I161:P161,2) -> 0 | F161: =LARGE(I161:P161,3) -> 0 | G161: =SUM(D161:F161) -> 0 | H161: =IF(E161<1,(G161/5),IF(F161<1,(G161/10),IF(F161>1,(G161/15)))) -> 0 | I161: 0 | J161: 0 | K161: 0
A162: 24 | D162: =LARGE(I162:P162,1) -> 0 | E162: =LARGE(I162:P162,2) -> 0 | F162: =LARGE(I162:P162,3) -> 0 | G162: =SUM(D162:F162) -> 0 | H162: =IF(E162<1,(G162/5),IF(F162<1,(G162/10),IF(F162>1,(G162/15)))) -> 0 | I162: 0 | J162: 0 | K162: 0
A163: Stand | B163: Naam | C163: Inschrijf nr. | D163: 1e Hoogste | E163: 2e Hoogste | F163: 3e hoogste | G163: Eindstand | H163: Gemiddelde | I163: 1e Kaart | J163: 2e Kaart | K163: 3e Kaart | L163: 4e Kaart | M163: 5e Kaart | N163: 6e Kaart | O163: 7e Kaart | P163: 8e Kaart
B164: Klasse G
B165: 110.01 - 115
A166: 1 | B166: Dinie Sempel | C166: 1 | D166: =LARGE(I166:P166,1) -> 621 | E166: =LARGE(I166:P166,2) -> 621 | F166: =LARGE(I166:P166,3) -> 612 | G166: =SUM(D166:F166) -> 1854 | H166: =IF(E166<1,(G166/5),IF(F166<1,(G166/10),IF(F166>1,(G166/15)))) -> 123.6 | I166: 592 | J166: 612 | K166: 608 | L166: 621 | M166: 621 | N166: 588
A167: 2 | B167: Henk Oostenbrink | C167: 25 | D167: =LARGE(I167:P167,1) -> 630 | E167: =LARGE(I167:P167,2) -> 621 | F167: =LARGE(I167:P167,3) -> 598 | G167: =SUM(D167:F167) -> 1849 | H167: =IF(E167<1,(G167/5),IF(F167<1,(G167/10),IF(F167>1,(G167/15)))) -> 123.2666667 | I167: 574 | J167: 550 | K167: 598 | L167: 621 | M167: 630 | N167: 572
A168: 3 | B168: Peter de Vries | C168: 2 | D168: =LARGE(I168:P168,1) -> 625 | E168: =LARGE(I168:P168,2) -> 613 | F168: =LARGE(I168:P168,3) -> 595 | G168: =SUM(D168:F168) -> 1833 | H168: =IF(E168<1,(G168/5),IF(F168<1,(G168/10),IF(F168>1,(G168/15)))) -> 122.2 | I168: 595 | J168: 575 | K168: 625 | L168: 568 | M168: 613 | N168: 569
A169: 4 | B169: Tineke Gort | C169: 47 | D169: =LARGE(I169:P169,1) -> 596 | E169: =LARGE(I169:P169,2) -> 591 | F169: =LARGE(I169:P169,3) -> 586 | G169: =SUM(D169:F169) -> 1773 | H169: =IF(E169<1,(G169/5),IF(F169<1,(G169/10),IF(F169>1,(G169/15)))) -> 118.2 | I169: 591 | J169: 596 | K169: 514 | L169: 548 | M169: 586
A170: 5 | D170: =LARGE(I170:P170,1) -> 0 | E170: =LARGE(I170:P170,2) -> 0 | F170: =LARGE(I170:P170,3) -> 0 | G170: =SUM(D170:F170) -> 0 | H170: =IF(E170<1,(G170/5),IF(F170<1,(G170/10),IF(F170>1,(G170/15)))) -> 0 | I170: 0 | J170: 0 | K170: 0
A171: 6 | D171: =LARGE(I171:P171,1) -> 0 | E171: =LARGE(I171:P171,2) -> 0 | F171: =LARGE(I171:P171,3) -> 0 | G171: =SUM(D171:F171) -> 0 | H171: =IF(E171<1,(G171/5),IF(F171<1,(G171/10),IF(F171>1,(G171/15)))) -> 0 | I171: 0 | J171: 0 | K171: 0
A172: 7 | D172: =LARGE(I172:P172,1) -> 0 | E172: =LARGE(I172:P172,2) -> 0 | F172: =LARGE(I172:P172,3) -> 0 | G172: =SUM(D172:F172) -> 0 | H172: =IF(E172<1,(G172/5),IF(F172<1,(G172/10),IF(F172>1,(G172/15)))) -> 0 | I172: 0 | J172: 0 | K172: 0
A173: 8 | D173: =LARGE(I173:P173,1) -> 0 | E173: =LARGE(I173:P173,2) -> 0 | F173: =LARGE(I173:P173,3) -> 0 | G173: =SUM(D173:F173) -> 0 | H173: =IF(E173<1,(G173/5),IF(F173<1,(G173/10),IF(F173>1,(G173/15)))) -> 0 | I173: 0 | J173: 0 | K173: 0
A174: 9 | D174: =LARGE(I174:P174,1) -> 0 | E174: =LARGE(I174:P174,2) -> 0 | F174: =LARGE(I174:P174,3) -> 0 | G174: =SUM(D174:F174) -> 0 | H174: =IF(E174<1,(G174/5),IF(F174<1,(G174/10),IF(F174>1,(G174/15)))) -> 0 | I174: 0 | J174: 0 | K174: 0
A175: 10 | D175: =LARGE(I175:P175,1) -> 0 | E175: =LARGE(I175:P175,2) -> 0 | F175: =LARGE(I175:P175,3) -> 0 | G175: =SUM(D175:F175) -> 0 | H175: =IF(E175<1,(G175/5),IF(F175<1,(G175/10),IF(F175>1,(G175/15)))) -> 0 | I175: 0 | J175: 0 | K175: 0
A176: 11 | D176: =LARGE(I176:P176,1) -> 0 | E176: =LARGE(I176:P176,2) -> 0 | F176: =LARGE(I176:P176,3) -> 0 | G176: =SUM(D176:F176) -> 0 | H176: =IF(E176<1,(G176/5),IF(F176<1,(G176/10),IF(F176>1,(G176/15)))) -> 0 | I176: 0 | J176: 0 | K176: 0
A177: 12 | D177: =LARGE(I177:P177,1) -> 0 | E177: =LARGE(I177:P177,2) -> 0 | F177: =LARGE(I177:P177,3) -> 0 | G177: =SUM(D177:F177) -> 0 | H177: =IF(E177<1,(G177/5),IF(F177<1,(G177/10),IF(F177>1,(G177/15)))) -> 0 | I177: 0 | J177: 0 | K177: 0
A178: 13 | D178: =LARGE(I178:P178,1) -> 0 | E178: =LARGE(I178:P178,2) -> 0 | F178: =LARGE(I178:P178,3) -> 0 | G178: =SUM(D178:F178) -> 0 | H178: =IF(E178<1,(G178/5),IF(F178<1,(G178/10),IF(F178>1,(G178/15)))) -> 0 | I178: 0 | J178: 0 | K178: 0
A179: 14 | D179: =LARGE(I179:P179,1) -> 0 | E179: =LARGE(I179:P179,2) -> 0 | F179: =LARGE(I179:P179,3) -> 0 | G179: =SUM(D179:F179) -> 0 | H179: =IF(E179<1,(G179/5),IF(F179<1,(G179/10),IF(F179>1,(G179/15)))) -> 0 | I179: 0 | J179: 0 | K179: 0
A180: 15 | D180: =LARGE(I180:P180,1) -> 0 | E180: =LARGE(I180:P180,2) -> 0 | F180: =LARGE(I180:P180,3) -> 0 | G180: =SUM(D180:F180) -> 0 | H180: =IF(E180<1,(G180/5),IF(F180<1,(G180/10),IF(F180>1,(G180/15)))) -> 0 | I180: 0 | J180: 0 | K180: 0
B182: Klasse H
B183: 105.01 - 110
A184: 1 | B184: D.J. Welleweerd | C184: 53 | D184: =LARGE(I184:P184,1) -> 623 | E184: =LARGE(I184:P184,2) -> 606 | F184: =LARGE(I184:P184,3) -> 557 | G184: =SUM(D184:F184) -> 1786 | H184: =IF(E184<1,(G184/5),IF(F184<1,(G184/10),IF(F184>1,(G184/15)))) -> 119.0666667 | I184: 547 | J184: 552 | K184: 606 | L184: 623 | M184: 557
A185: 2 | B185: Bert Batenburg | C185: 24 | D185: =LARGE(I185:P185,1) -> 601 | E185: =LARGE(I185:P185,2) -> 596 | F185: =LARGE(I185:P185,3) -> 586 | G185: =SUM(D185:F185) -> 1783 | H185: =IF(E185<1,(G185/5),IF(F185<1,(G185/10),IF(F185>1,(G185/15)))) -> 118.8666667 | I185: 528 | J185: 498 | K185: 559 | L185: 596 | M185: 601 | N185: 586
A186: 3 | B186: Gerben Koppelman | C186: 43 | D186: =LARGE(I186:P186,1) -> 588 | E186: =LARGE(I186:P186,2) -> 584 | F186: =LARGE(I186:P186,3) -> 583 | G186: =SUM(D186:F186) -> 1755 | H186: =IF(E186<1,(G186/5),IF(F186<1,(G186/10),IF(F186>1,(G186/15)))) -> 117 | I186: 588 | J186: 463 | K186: 584 | L186: 583
A187: 4 | B187: Harry de Gunst | C187: 36 | D187: =LARGE(I187:P187,1) -> 601 | E187: =LARGE(I187:P187,2) -> 571 | F187: =LARGE(I187:P187,3) -> 569 | G187: =SUM(D187:F187) -> 1741 | H187: =IF(E187<1,(G187/5),IF(F187<1,(G187/10),IF(F187>1,(G187/15)))) -> 116.0666667 | I187: 562 | J187: 555 | K187: 520 | L187: 601 | M187: 569 | N187: 571
A188: 5 | B188: Diana Krause | C188: 18 | D188: =LARGE(I188:P188,1) -> 592 | E188: =LARGE(I188:P188,2) -> 564 | F188: =LARGE(I188:P188,3) -> 563 | G188: =SUM(D188:F188) -> 1719 | H188: =IF(E188<1,(G188/5),IF(F188<1,(G188/10),IF(F188>1,(G188/15)))) -> 114.6 | I188: 533 | J188: 564 | K188: 544 | L188: 557 | M188: 530 | N188: 592 | O188: 515 | P188: 563
A189: 6 | B189: Nel Janssen | C189: 8 | D189: =LARGE(I189:P189,1) -> 582 | E189: =LARGE(I189:P189,2) -> 560 | F189: =LARGE(I189:P189,3) -> 555 | G189: =SUM(D189:F189) -> 1697 | H189: =IF(E189<1,(G189/5),IF(F189<1,(G189/10),IF(F189>1,(G189/15)))) -> 113.1333333 | I189: 501 | J189: 550 | K189: 560 | L189: 582 | M189: 555 | N189: 554
A190: 7 | B190: Sonja Post | C190: 17 | D190: =LARGE(I190:P190,1) -> 555 | E190: =LARGE(I190:P190,2) -> 541 | F190: =LARGE(I190:P190,3) -> 522 | G190: =SUM(D190:F190) -> 1618 | H190: =IF(E190<1,(G190/5),IF(F190<1,(G190/10),IF(F190>1,(G190/15)))) -> 107.8666667 | I190: 445 | J190: 509 | K190: 522 | L190: 514 | M190: 497 | N190: 555 | O190: 541
A191: 8 | D191: =LARGE(I191:P191,1) -> 0 | E191: =LARGE(I191:P191,2) -> 0 | F191: =LARGE(I191:P191,3) -> 0 | G191: =SUM(D191:F191) -> 0 | H191: =IF(E191<1,(G191/5),IF(F191<1,(G191/10),IF(F191>1,(G191/15)))) -> 0 | I191: 0 | J191: 0 | K191: 0
A192: 9 | D192: =LARGE(I192:P192,1) -> 0 | E192: =LARGE(I192:P192,2) -> 0 | F192: =LARGE(I192:P192,3) -> 0 | G192: =SUM(D192:F192) -> 0 | H192: =IF(E192<1,(G192/5),IF(F192<1,(G192/10),IF(F192>1,(G192/15)))) -> 0 | I192: 0 | J192: 0 | K192: 0
A193: 10 | D193: =LARGE(I193:P193,1) -> 0 | E193: =LARGE(I193:P193,2) -> 0 | F193: =LARGE(I193:P193,3) -> 0 | G193: =SUM(D193:F193) -> 0 | H193: =IF(E193<1,(G193/5),IF(F193<1,(G193/10),IF(F193>1,(G193/15)))) -> 0 | I193: 0 | J193: 0 | K193: 0
A194: 11 | D194: =LARGE(I194:P194,1) -> 0 | E194: =LARGE(I194:P194,2) -> 0 | F194: =LARGE(I194:P194,3) -> 0 | G194: =SUM(D194:F194) -> 0 | H194: =IF(E194<1,(G194/5),IF(F194<1,(G194/10),IF(F194>1,(G194/15)))) -> 0 | I194: 0 | J194: 0 | K194: 0
A195: 12 | D195: =LARGE(I195:P195,1) -> 0 | E195: =LARGE(I195:P195,2) -> 0 | F195: =LARGE(I195:P195,3) -> 0 | G195: =SUM(D195:F195) -> 0 | H195: =IF(E195<1,(G195/5),IF(F195<1,(G195/10),IF(F195>1,(G195/15)))) -> 0 | I195: 0 | J195: 0 | K195: 0
A196: 13 | D196: =LARGE(I196:P196,1) -> 0 | E196: =LARGE(I196:P196,2) -> 0 | F196: =LARGE(I196:P196,3) -> 0 | G196: =SUM(D196:F196) -> 0 | H196: =IF(E196<1,(G196/5),IF(F196<1,(G196/10),IF(F196>1,(G196/15)))) -> 0 | I196: 0 | J196: 0 | K196: 0
A197: 14 | D197: =LARGE(I197:P197,1) -> 0 | E197: =LARGE(I197:P197,2) -> 0 | F197: =LARGE(I197:P197,3) -> 0 | G197: =SUM(D197:F197) -> 0 | H197: =IF(E197<1,(G197/5),IF(F197<1,(G197/10),IF(F197>1,(G197/15)))) -> 0 | I197: 0 | J197: 0 | K197: 0
A198: 15 | D198: =LARGE(I198:P198,1) -> 0 | E198: =LARGE(I198:P198,2) -> 0 | F198: =LARGE(I198:P198,3) -> 0 | G198: =SUM(D198:F198) -> 0 | H198: =IF(E198<1,(G198/5),IF(F198<1,(G198/10),IF(F198>1,(G198/15)))) -> 0 | I198: 0 | J198: 0 | K198: 0
B200: Klasse I
B201: 100.00 - 105
A202: 1 | B202: Adriana van de Zande | C202: 10 | D202: =LARGE(I202:P202,1) -> 607 | E202: =LARGE(I202:P202,2) -> 593 | F202: =LARGE(I202:P202,3) -> 574 | G202: =SUM(D202:F202) -> 1774 | H202: =IF(E202<1,(G202/5),IF(F202<1,(G202/10),IF(F202>1,(G202/15)))) -> 118.2666667 | I202: 468 | J202: 516 | K202: 538 | L202: 574 | M202: 523 | N202: 607 | O202: 593
... 63 more rows

Sheet Finale Kaarten
A1: ='Standen Programma'!B4 -> Wim Kiwiet | D1: =A1 -> Wim Kiwiet | F1: ='Standen Programma'!B5 -> Siem Oostenbrink | I1: =F1 -> Siem Oostenbrink | K1: ='Standen Programma'!B6 -> Hetty Kleine | N1: =K1 -> Hetty Kleine
A2: ='Standen Programma'!B2 -> Klasse A | B2: ='Standen Programma'!C4 -> 20 | F2: =A2 -> Klasse A | G2: ='Standen Programma'!C5 -> 52 | K2: =A2 -> Klasse A | L2: ='Standen Programma'!C6 -> 62
A3: Jureren Vak C | F3: =A3 -> Jureren Vak C | K3: =A3 -> Jureren Vak C
B4: ='Standen Programma'!D4 -> 732 | E4: =B4 -> 732 | G4: ='Standen Programma'!D5 -> 732 | J4: =G4 -> 732 | L4: ='Standen Programma'!D6 -> 724 | O4: =L4 -> 724
A5: Bak | B5: Score | D5: Bak | E5: Score | F5: Bak | G5: Score | I5: Bak | J5: Score | K5: Bak | L5: Score | N5: Bak | O5: Score
A11: Totaal | D11: Totaal | F11: Totaal | I11: Totaal | K11: Totaal | N11: Totaal
A12: ='Standen Programma'!B7 -> Jarno Langerak | D12: =A12 -> Jarno Langerak | F12: ='Standen Programma'!B8 -> Herman Depenbrock | I12: =F12 -> Herman Depenbrock | K12: ='Standen Programma'!B31 -> Theo v d Ree Dolaard | N12: =K12 -> Theo v d Ree Dolaard
A13: =A2 -> Klasse A | B13: ='Standen Programma'!C7 -> 31 | F13: =A2 -> Klasse A | G13: ='Standen Programma'!C8 -> 40 | K13: ='Standen Programma'!B29 -> Klasse B | L13: ='Standen Programma'!C31 -> 38
A14: =A3 -> Jureren Vak C | F14: =A3 -> Jureren Vak C | K14: Sjoelen Vak C
B15: ='Standen Programma'!D7 -> 724 | E15: =B15 -> 724 | G15: ='Standen Programma'!D8 -> 732 | J15: =G15 -> 732 | L15: ='Standen Programma'!D31 -> 708 | O15: =L15 -> 708
A16: Bak | B16: Score | D16: Bak | E16: Score | F16: Bak | G16: Score | I16: Bak | J16: Score | K16: Bak | L16: Score | N16: Bak | O16: Score
A22: Totaal | D22: Totaal | F22: Totaal | I22: Totaal | K22: Totaal | N22: Totaal
A23: ='Standen Programma'!B32 -> Hans Heusinkveld | D23: =A23 -> Hans Heusinkveld | F23: ='Standen Programma'!B33 -> Wim Dunning | I23: =F23 -> Wim Dunning | K23: ='Standen Programma'!B34 -> Janny Koops | N23: =K23 -> Janny Koops
A24: =K13 -> Klasse B | F24: =K13 -> Klasse B | G24: ='Standen Programma'!C33 -> 30 | K24: =K13 -> Klasse B | L24: ='Standen Programma'!C34 -> 46
A25: =K14 -> Sjoelen Vak C | F25: =K14 -> Sjoelen Vak C | K25: =K14 -> Sjoelen Vak C
B26: ='Standen Programma'!D32 -> 720 | E26: =B26 -> 720 | G26: ='Standen Programma'!D33 -> 693 | J26: =G26 -> 693 | L26: ='Standen Programma'!D34 -> 697 | O26: =L26 -> 697
A27: Bak | B27: Score | D27: Bak | E27: Score | F27: Bak | G27: Score | I27: Bak | J27: Score | K27: Bak | L27: Score | N27: Bak | O27: Score
A33: Totaal | D33: Totaal | F33: Totaal | I33: Totaal | K33: Totaal | N33: Totaal
A34: ='Standen Programma'!B35 -> Marissa Tolsma | D34: =A34 -> Marissa Tolsma | F34: ='Standen Programma'!B58 -> Albert van Urk | I34: =F34 -> Albert van Urk | K34: ='Standen Programma'!B59 -> Iko van Elburg | N34: =K34 -> Iko van Elburg
A35: =K13 -> Klasse B | B35: ='Standen Programma'!C35 -> 69 | F35: ='Standen Programma'!B56 -> Klasse C | G35: ='Standen Programma'!C58 -> 48 | K35: =F35 -> Klasse C | L35: ='Standen Programma'!C59 -> 51
A36: =K14 -> Sjoelen Vak C | F36: Jureren Vak F | K36: =F36 -> Jureren Vak F
B37: ='Standen Programma'!D35 -> 681 | E37: =B37 -> 681 | G37: ='Standen Programma'!D58 -> 699 | J37: =G37 -> 699 | L37: ='Standen Programma'!D59 -> 697 | O37: =L37 -> 697
A38: Bak | B38: Score | D38: Bak | E38: Score | F38: Bak | G38: Score | I38: Bak | J38: Score | K38: Bak | L38: Score | N38: Bak | O38: Score
A44: Totaal | D44: Totaal | F44: Totaal | I44: Totaal | K44: Totaal | N44: Totaal
A45: ='Standen Programma'!B60 -> Henk Veldman | D45: =A45 -> Henk Veldman | F45: ='Standen Programma'!B61 -> Ronnie Zwiers | I45: =F45 -> Ronnie Zwiers | K45: ='Standen Programma'!B62 -> Gert Loch | N45: =K45 -> Gert Loch
A46: =F35 -> Klasse C | B46: ='Standen Programma'!C60 -> 29 | F46: =F35 -> Klasse C | G46: ='Standen Programma'!C61 -> 61 | K46: =F35 -> Klasse C | L46: ='Standen Programma'!C62 -> 37
A47: =F36 -> Jureren Vak F | F47: =F36 -> Jureren Vak F | K47: =F36 -> Jureren Vak F
B48: ='Standen Programma'!D60 -> 691 | E48: =B48 -> 691 | G48: ='Standen Programma'!D61 -> 684 | J48: =G48 -> 684 | L48: ='Standen Programma'!D62 -> 682 | O48: =L48 -> 682
A49: Bak | B49: Score | D49: Bak | E49: Score | F49: Bak | G49: Score | I49: Bak | J49: Score | K49: Bak | L49: Score | N49: Bak | O49: Score
A55: Totaal | D55: Totaal | F55: Totaal | I55: Totaal | K55: Totaal | N55: Totaal
A56: ='Standen Programma'!B85 -> Henk Ruitenberg | D56: =A56 -> Henk Ruitenberg | F56: ='Standen Programma'!B86 -> Lammert Kiers | I56: =F56 -> Lammert Kiers | K56: ='Standen Programma'!B87 -> Jaap Ploeger | N56: =K56 -> Jaap Ploeger
A57: ='Standen Programma'!B83 -> Klasse D | B57: ='Standen Programma'!C85 -> 35 | F57: =A57 -> Klasse D | G57: ='Standen Programma'!C86 -> 32 | K57: =A57 -> Klasse D | L57: ='Standen Programma'!C87 -> 49
A58: Sjoelen Vak F | F58: =A58 -> Sjoelen Vak F | K58: =A58 -> Sjoelen Vak F
B59: ='Standen Programma'!D85 -> 681 | E59: =B59 -> 681 | G59: ='Standen Programma'!D86 -> 690 | J59: =G59 -> 690 | L59: ='Standen Programma'!D87 -> 668 | O59: =L59 -> 668
A60: Bak | B60: Score | D60: Bak | E60: Score | F60: Bak | G60: Score | I60: Bak | J60: Score | K60: Bak | L60: Score | N60: Bak | O60: Score
A66: Totaal | D66: Totaal | F66: Totaal | I66: Totaal | K66: Totaal | N66: Totaal
A67: ='Standen Programma'!B88 -> Hennie Kiers | D67: =A67 -> Hennie Kiers | F67: ='Standen Programma'!B89 -> Henk Depenbrock | I67: =F67 -> Henk Depenbrock | K67: ='Standen Programma'!B112 -> Herman Brokelman | N67: =K67 -> Herman Brokelman
A68: =A57 -> Klasse D | B68: ='Standen Programma'!C88 -> 33 | F68: =A57 -> Klasse D | G68: ='Standen Programma'!C89 -> 41 | K68: ='Standen Programma'!B110 -> Klasse E | L68: ='Standen Programma'!C112 -> 59
A69: =A58 -> Sjoelen Vak F | F69: =A58 -> Sjoelen Vak F | K69: Jureren Vak A
B70: ='Standen Programma'!D88 -> 614 | E70: =B70 -> 614 | G70: ='Standen Programma'!D89 -> 602 | J70: =G70 -> 602 | L70: ='Standen Programma'!D112 -> 670 | O70: =L70 -> 670
A71: Bak | B71: Score | D71: Bak | E71: Score | F71: Bak | G71: Score | I71: Bak | J71: Score | K71: Bak | L71: Score | N71: Bak | O71: Score
A77: Totaal | D77: Totaal | F77: Totaal | I77: Totaal | K77: Totaal | N77: Totaal
A78: ='Standen Programma'!B113 -> Jacob Strating | D78: =A78 -> Jacob Strating | F78: ='Standen Programma'!B114 -> Jan Zwiers | I78: =F78 -> Jan Zwiers | K78: ='Standen Programma'!B115 -> Jan van der Sleen | N78: =K78 -> Jan van der Sleen
A79: =K68 -> Klasse E | B79: ='Standen Programma'!C113 -> 7 | F79: =K68 -> Klasse E | G79: ='Standen Programma'!C114 -> 3 | K79: =K68 -> Klasse E | L79: ='Standen Programma'!C115 -> 5
A80: =K69 -> Jureren Vak A | F80: =K69 -> Jureren Vak A | K80: =K69 -> Jureren Vak A
B81: ='Standen Programma'!D113 -> 680 | E81: =B81 -> 680 | G81: ='Standen Programma'!D114 -> 659 | J81: =G81 -> 659 | L81: ='Standen Programma'!D115 -> 665 | O81: =L81 -> 665
A82: Bak | B82: Score | D82: Bak | E82: Score | F82: Bak | G82: Score | I82: Bak | J82: Score | K82: Bak | L82: Score | N82: Bak | O82: Score
A88: Totaal | D88: Totaal | F88: Totaal | I88: Totaal | K88: Totaal | N88: Totaal
A89: ='Standen Programma'!B116 -> Fred Heijerman | D89: =A89 -> Fred Heijerman | F89: ='Standen Programma'!B139 -> Clemense Bekhof | I89: =F89 -> Clemense Bekhof | K89: ='Standen Programma'!B140 -> Janny Beens | N89: =K89 -> Janny Beens
A90: =K68 -> Klasse E | B90: ='Standen Programma'!C116 -> 6 | F90: ='Standen Programma'!B137 -> Klasse F | G90: ='Standen Programma'!C139 -> 22 | K90: =F90 -> Klasse F | L90: ='Standen Programma'!C140 -> 19
A91: =K69 -> Jureren Vak A | F91: Sjoelen Vak A | K91: =F91 -> Sjoelen Vak A
B92: ='Standen Programma'!D116 -> 653 | E92: =B92 -> 653 | G92: ='Standen Programma'!D139 -> 655 | J92: =G92 -> 655 | L92: ='Standen Programma'!D140 -> 609 | O92: =L92 -> 609
A93: Bak | B93: Score | D93: Bak | E93: Score | F93: Bak | G93: Score | I93: Bak | J93: Score | K93: Bak | L93: Score | N93: Bak | O93: Score
A99: Totaal | D99: Totaal | F99: Totaal | I99: Totaal | K99: Totaal | N99: Totaal
A100: ='Standen Programma'!B141 -> Jansje Kornet | D100: =A100 -> Jansje Kornet | F100: ='Standen Programma'!B142 -> Rinsje Boskamp | I100: =F100 -> Rinsje Boskamp | K100: ='Standen Programma'!B143 -> Tiny Ploeger | N100: =K100 -> Tiny Ploeger
A101: =F90 -> Klasse F | B101: ='Standen Programma'!C141 -> 16 | F101: =F90 -> Klasse F | G101: ='Standen Programma'!C142 -> 12 | K101: =F90 -> Klasse F | L101: ='Standen Programma'!C143 -> 50
A102: =F91 -> Sjoelen Vak A | F102: =F91 -> Sjoelen Vak A | K102: =F91 -> Sjoelen Vak A
B103: ='Standen Programma'!D141 -> 595 | E103: =B103 -> 595 | G103: ='Standen Programma'!D142 -> 567 | J103: =G103 -> 567 | L103: ='Standen Programma'!D143 -> 424 | O103: =L103 -> 424
A104: Bak | B104: Score | D104: Bak | E104: Score | F104: Bak | G104: Score | I104: Bak | J104: Score | K104: Bak | L104: Score | N104: Bak | O104: Score
A110: Totaal | D110: Totaal | F110: Totaal | I110: Totaal | K110: Totaal | N110: Totaal
A111: ='Standen Programma'!B166 -> Dinie Sempel | D111: =A111 -> Dinie Sempel | F111: ='Standen Programma'!B167 -> Henk Oostenbrink | I111: =F111 -> Henk Oostenbrink | K111: ='Standen Programma'!B168 -> Peter de Vries | N111: =K111 -> Peter de Vries
A112: ='Standen Programma'!B164 -> Klasse G | B112: ='Standen Programma'!C166 -> 1 | F112: =A112 -> Klasse G | G112: ='Standen Programma'!C167 -> 25 | K112: =A112 -> Klasse G | L112: ='Standen Programma'!C168 -> 2
A113: Jureren Vak D | F113: =A113 -> Jureren Vak D | K113: =A113 -> Jureren Vak D
B114: ='Standen Programma'!D166 -> 621 | E114: =B114 -> 621 | G114: ='Standen Programma'!D167 -> 630 | J114: =G114 -> 630 | L114: ='Standen Programma'!D168 -> 625 | O114: =L114 -> 625
A115: Bak | B115: Score | D115: Bak | E115: Score | F115: Bak | G115: Score | I115: Bak | J115: Score | K115: Bak | L115: Score | N115: Bak | O115: Score
A121: Totaal | D121: Totaal | F121: Totaal | I121: Totaal | K121: Totaal | N121: Totaal
A122: ='Standen Programma'!B169 -> Tineke Gort | D122: =A122 -> Tineke Gort | F122: ='Standen Programma'!B170 -> 0 | I122: =F122 -> 0 | K122: ='Standen Programma'!B184 -> D.J. Welleweerd | N122: =K122 -> D.J. Welleweerd
A123: =A112 -> Klasse G | B123: ='Standen Programma'!C169 -> 47 | F123: =A123 -> Klasse G | G123: ='Standen Programma'!C170 -> 0 | K123: ='Standen Programma'!B182 -> Klasse H | L123: ='Standen Programma'!C184 -> 53
A124: =A113 -> Jureren Vak D | F124: =A124 -> Jureren Vak D | K124: Sjoelen Vak D
B125: ='Standen Programma'!D169 -> 596 | E125: =B125 -> 596 | G125: ='Standen Programma'!D170 -> 0 | J125: =G125 -> 0 | L125: ='Standen Programma'!D184 -> 623 | O125: =L125 -> 623
A126: Bak | B126: Score | D126: Bak | E126: Score | F126: Bak | G126: Score | I126: Bak | J126: Score | K126: Bak | L126: Score | N126: Bak | O126: Score
A132: Totaal | D132: Totaal | F132: Totaal | I132: Totaal | K132: Totaal | N132: Totaal
A133: ='Standen Programma'!B185 -> Bert Batenburg | D133: =A133 -> Bert Batenburg | F133: ='Standen Programma'!B186 -> Gerben Koppelman | I133: =F133 -> Gerben Koppelman | K133: ='Standen Programma'!B187 -> Harry de Gunst | N133: =K133 -> Harry de Gunst
A134: =K123 -> Klasse H | B134: ='Standen Programma'!C185 -> 24 | F134: =K123 -> Klasse H | G134: ='Standen Programma'!C186 -> 43 | K134: =K123 -> Klasse H | L134: ='Standen Programma'!C187 -> 36
A135: =K124 -> Sjoelen Vak D | F135: =K124 -> Sjoelen Vak D | K135: =K124 -> Sjoelen Vak D
B136: ='Standen Programma'!D185 -> 601 | E136: ='Standen Programma'!D186 -> 588 | G136: ='Standen Programma'!D186 -> 588 | J136: =G136 -> 588 | L136: ='Standen Programma'!D187 -> 601 | O136: =L136 -> 601
A137: Bak | B137: Score | D137: Bak | E137: Score | F137: Bak | G137: Score | I137: Bak | J137: Score | K137: Bak | L137: Score | N137: Bak | O137: Score
A143: Totaal | D143: Totaal | F143: Totaal | I143: Totaal | K143: Totaal | N143: Totaal
A144: ='Standen Programma'!B188 -> Diana Krause | D144: =A144 -> Diana Krause | F144: ='Standen Programma'!B202 -> Adriana van de Zande | I144: =F144 -> Adriana van de Zande | K144: ='Standen Programma'!B203 -> Roelie Bijlsma | N144: =K144 -> Roelie Bijlsma
A145: =K123 -> Klasse H | B145: ='Standen Programma'!C188 -> 18 | F145: ='Standen Programma'!B200 -> Klasse I | G145: ='Standen Programma'!C202 -> 10 | K145: =F145 -> Klasse I | L145: ='Standen Programma'!C203 -> 23
A146: =K124 -> Sjoelen Vak D | F146: Jureren Vak B | K146: =F146 -> Jureren Vak B
B147: ='Standen Programma'!D188 -> 592 | E147: =B147 -> 592 | G147: ='Standen Programma'!D202 -> 607 | J147: =G147 -> 607 | L147: ='Standen Programma'!D203 -> 588 | O147: =L147 -> 588
A148: Bak | B148: Score | D148: Bak | E148: Score | F148: Bak | G148: Score | I148: Bak | J148: Score | K148: Bak | L148: Score | N148: Bak | O148: Score
A154: Totaal | D154: Totaal | F154: Totaal | I154: Totaal | K154: Totaal | N154: Totaal
A155: ='Standen Programma'!B204 -> Betty Koppelman | D155: =A155 -> Betty Koppelman | F155: ='Standen Programma'!B205 -> Ge Oostenbrink | I155: =F155 -> Ge Oostenbrink | K155: ='Standen Programma'!B206 -> Leny van de Vliet | N155: =K155 -> Leny van de Vliet
A156: =F145 -> Klasse I | B156: ='Standen Programma'!C204 -> 42 | F156: =F145 -> Klasse I | G156: ='Standen Programma'!C205 -> 26 | K156: =F145 -> Klasse I | L156: ='Standen Programma'!C206 -> 4
A157: =F146 -> Jureren Vak B | F157: =F146 -> Jureren Vak B | K157: =F146 -> Jureren Vak B
B158: ='Standen Programma'!D204 -> 564 | E158: =B158 -> 564 | G158: ='Standen Programma'!D205 -> 573 | J158: =G158 -> 573 | L158: ='Standen Programma'!D206 -> 550 | O158: =L158 -> 550
A159: Bak | B159: Score | D159: Bak | E159: Score | F159: Bak | G159: Score | I159: Bak | J159: Score | K159: Bak | L159: Score | N159: Bak | O159: Score
A165: Totaal | D165: Totaal | F165: Totaal | I165: Totaal | K165: Totaal | N165: Totaal
A166: ='Standen Programma'!B220 -> Leo Koppelman | D166: =A166 -> Leo Koppelman | F166: ='Standen Programma'!B221 -> 0 | I166: =F166 -> 0 | K166: ='Standen Programma'!B222 -> 0 | N166: =K166 -> 0
A167: ='Standen Programma'!B218 -> Klasse J | B167: ='Standen Programma'!C220 -> 15 | F167: =A167 -> Klasse J | G167: ='Standen Programma'!C221 -> 0 | K167: =A167 -> Klasse J | L167: ='Standen Programma'!C222 -> 0
A168: Sjoelen Vak B | F168: =A168 -> Sjoelen Vak B | K168: =A168 -> Sjoelen Vak B
B169: ='Standen Programma'!D220 -> 499 | E169: =B169 -> 499 | G169: ='Standen Programma'!D221 -> 0 | J169: =G169 -> 0 | L169: ='Standen Programma'!D222 -> 0 | O169: =L169 -> 0
A170: Bak | B170: Score | D170: Bak | E170: Score | F170: Bak | G170: Score | I170: Bak | J170: Score | K170: Bak | L170: Score | N170: Bak | O170: Score
A176: Totaal | D176: Totaal | F176: Totaal | I176: Totaal | K176: Totaal | N176: Totaal
A177: ='Standen Programma'!B223 -> 0 | D177: =A177 -> 0 | F177: ='Standen Programma'!B224 -> 0 | I177: =F177 -> 0 | K177: ='Standen Programma'!B235 -> Jorn Tolsma | N177: =K177 -> Jorn Tolsma
A178: =A167 -> Klasse J | B178: ='Standen Programma'!C223 -> 0 | F178: =A167 -> Klasse J | G178: ='Standen Programma'!C224 -> 0 | K178: ='Standen Programma'!B233 -> Jeugd | L178: ='Standen Programma'!C235 -> 71
A179: =A168 -> Sjoelen Vak B | F179: =A168 -> Sjoelen Vak B | K179: Jureren Vak E
B180: ='Standen Programma'!D223 -> 0 | E180: =B180 -> 0 | G180: ='Standen Programma'!D224 -> 0 | J180: =G180 -> 0 | L180: ='Standen Programma'!D235 -> 530 | O180: =L180 -> 530
A181: Bak | B181: Score | D181: Bak | E181: Score | F181: Bak | G181: Score | I181: Bak | J181: Score | K181: Bak | L181: Score | N181: Bak | O181: Score
A187: Totaal | D187: Totaal | F187: Totaal | I187: Totaal | K187: Totaal | N187: Totaal
A188: ='Standen Programma'!B236 -> Matz Verlaan | D188: =A188 -> Matz Verlaan | F188: ='Standen Programma'!B237 -> Jonathan Verlaan | I188: =F188 -> Jonathan Verlaan | K188: ='Standen Programma'!B238 -> 0 | N188: =K188 -> 0
A189: =K178 -> Jeugd | B189: ='Standen Programma'!C236 -> 64 | F189: =K178 -> Jeugd | G189: ='Standen Programma'!C237 -> 65 | K189: =K178 -> Jeugd | L189: ='Standen Programma'!C238 -> 0
A190: =K179 -> Jureren Vak E | F190: =K179 -> Jureren Vak E | K190: =K179 -> Jureren Vak E
B191: ='Standen Programma'!D236 -> 468 | E191: =B191 -> 468 | G191: ='Standen Programma'!D237 -> 437 | J191: =G191 -> 437 | L191: ='Standen Programma'!D238 -> 0 | O191: =L191 -> 0
A192: Bak | B192: Score | D192: Bak | E192: Score | F192: Bak | G192: Score | I192: Bak | J192: Score | K192: Bak | L192: Score | N192: Bak | O192: Score
A198: Totaal | D198: Totaal | F198: Totaal | I198: Totaal | K198: Totaal | N198: Totaal
A199: ='Standen Programma'!B239 -> 0 | D199: =A199 -> 0 | F199: ='Standen Programma'!B246 -> Elly Nijland | I199: =F199 -> Elly Nijland | K199: ='Standen Programma'!B247 -> Anny Hakkers | N199: =K199 -> Anny Hakkers
A200: =K178 -> Jeugd | B200: ='Standen Programma'!C239 -> 0 | F200: ='Standen Programma'!B244 -> 0 | G200: ='Standen Programma'!C246 -> 67 | K200: =F200 -> 0 | L200: ='Standen Programma'!C247 -> 66
A201: =K179 -> Jureren Vak E | F201: Sjoelen Vak E | K201: =F201 -> Sjoelen Vak E
B202: ='Standen Programma'!D239 -> 0 | E202: =B202 -> 0 | G202: ='Standen Programma'!D246 -> 620 | J202: =G202 -> 620 | L202: ='Standen Programma'!D247 -> 588 | O202: =L202 -> 588
A203: Bak | B203: Score | D203: Bak | E203: Score | F203: Bak | G203: Score | I203: Bak | J203: Score | K203: Bak | L203: Score | N203: Bak | O203: Score
A209: Totaal | D209: Totaal | F209: Totaal | I209: Totaal | K209: Totaal | N209: Totaal
A210: ='Standen Programma'!B248 -> Annelijn Tolsma | D210: =A210 -> Annelijn Tolsma | F210: ='Standen Programma'!B249 -> Kevin Nijland | I210: =F210 -> Kevin Nijland | K210: ='Standen Programma'!B250 -> 0 | N210: =K210 -> 0
A211: =F200 -> 0 | B211: ='Standen Programma'!C248 -> 70 | F211: =F200 -> 0 | G211: ='Standen Programma'!C249 -> 68 | K211: =F200 -> 0 | L211: ='Standen Programma'!C250 -> 0
A212: =F201 -> Sjoelen Vak E | F212: =F201 -> Sjoelen Vak E | K212: =F201 -> Sjoelen Vak E
B213: ='Standen Programma'!D248 -> 499 | E213: =B213 -> 499 | G213: ='Standen Programma'!D249 -> 335 | J213: =G213 -> 335 | L213: ='Standen Programma'!D250 -> 0 | O213: =L213 -> 0
A214: Bak | B214: Score | D214: Bak | E214: Score | F214: Bak | G214: Score | I214: Bak | J214: Score | K214: Bak | L214: Score | N214: Bak | O214: Score
A220: Totaal | D220: Totaal | F220: Totaal | I220: Totaal | K220: Totaal | N220: Totaal
